Cogmind - Beta 16 @@@ ROGUE MODE // 2025.11.06 @ 12:27:56 Player: k1ll3rb0t Result: Destroyed by P-80 Master with Gamma Rifle Performance ------------- Evolutions (9) 4500 Regions Visited (29) 5800 Robots Destroyed (625) 3125 Value Destroyed (33622) 33622 Prototype IDs (86) 1720 Alien Tech Used (5) 1000 Bonus (28693) 28693 TOTAL SCORE: 78460 Bonus ------- High Alert Combat Kills 8916 Follower Combat Kills 2573 Entered Garrisons 200 Network Hubs Disabled 400 Destroyed Z-Imprinter 1000 Acquired ECA 300 Met Warlord at Base 500 MAIN.C Attacked Warlord 500 Warlord Defense Kills 2174 Built Enhanced Grunts 300 A7 Reached Mainframe 300 Met R17 at Cetus 500 Used Core Reset Matrix 3000 Met R17 at Research 2000 Met Warlord at Research 2000 Invited to Help at Command 2000 Scanned by Researcher 500 Met Sigix 2000 Friendly Fire -470 Cogmind --------- Core Integrity 0/1600 Matter 94/300 Energy 124/150 System Corruption 61% Temperature Hot (230) Movement Treading (156) Location -1/Access Parts ------- > --- POWER (3) -------- Micro Antimatter Reactor > --- PROPULSION (8) --- Advanced Medium Treads Spiked Heavy Treads Spiked Heavy Treads Spiked Heavy Treads > --- UTILITY (11) ----- Advanced Signal Interpreter Terrain Scan Processor > --- WEAPON (4) ------- Improved Potential Cannon > --- INVENTORY (5) ---- (None) Peak State ------------ > --- POWER ------------ Light Angular Momentum Engine Light Neutrino Core Light Quantum Reactor > --- PROPULSION ------- Spiked Medium Treads Armored Medium Treads Enhanced Armored Medium Treads Biometal Heavy Treads High-density Centrium Wheel > --- UTILITY ---------- Advanced Cooling System Huge Storage Unit Machine Analyzer Experimental Optical Array Advanced Signal Interpreter Experimental Targeting Computer Experimental Armor Integrity Analyzer SHELL Armor Graphene Brace > --- WEAPON ----------- High-powered Disruptor Cannon Helical Railgun Hypervelocity Multirail > --- INVENTORY -------- Reinforced Quantum Reactor Zionite Biocell Experimental Matter Compressor Advanced Sensor Array Medium Regenerative Plating Improved Thermal Shield Thermal Barrier Long-range Tractor Beam Mini Drone Bay Warp Gun Enhanced Nova Cannon Null Cannon Improved Potential Cannon Bore Cannon Enhanced Hardcell Cannon Enhanced Hardcell Cannon Neutron Missile Launcher Neutron Missile Launcher Neutron Missile Launcher Ragnarok Missile Launcher Sigix Terminator Plasma Cutter Power Sword [Rating: 212] Favorites ----------- Power Hybrid Fission Core Engine Heavy Deuterium Engine Power Core Hybrid Fission Core Reactor Quantum Reactor Propulsion Armored Medium Treads Treads Armored Medium Treads Leg Carbon-fiber Leg Wheel Compact Wheel Hover Unit Backup Propulsion III Flight Unit Xenon Bombardment Thruster Utility Huge Storage Unit Device Advanced Force Field Storage Huge Storage Unit Processor Core Analyzer Hackware Hacking Suite Protection Centrium Light Armor Plating Weapon Hypervelocity Gauss Cannon Energy Gun Advanced Beam Rifle Energy Cannon Heavy Plasma Cannon Ballistic Gun Hypervelocity Gauss Rifle Ballistic Cannon Hypervelocity Gauss Cannon Launcher Improved Proton Missile Launcher Special Weapon Plasma Cutter Slashing Weapon Power Sword Build | -11 -10 -9 -8 -8 -8 -6 -6 -6 -6 -6 -6 -6 -5 -5 -5 -5 -5 -5 -4 -4 -4 -4 -3 -3 -3 -2 -2 -2 -1 ------- Run | Yrd Mat Mat Mat Sto Rec Fac Gar Fac Low Low Zio Dee Pro Fac Ext Cet Arc Hub Fac Upp Upp War Pro Res Qua Res Tes Sec Acc Slots Evolved 18 | . . 2 2 . . 4 . . . . . . . 2 . . . . 2 . . . . 2 . 2 . . 2 Power 2 | . . . . . . . . . . . . . . 1 . . . . . . . . . 1 . . . . . Propulsion 6 | . . 2 . . . 1 . . . . . . . . . . . . 1 . . . . . . . . . 2 Utility 8 | . . . 1 . . 2 . . . . . . . 1 . . . . 1 . . . . 1 . 2 . . . Weapon 2 | . . . 1 . . 1 . . . . . . . . . . . . . . . . . . . . . . . Parts Attached 464 | 8 19 12 22 39 4 17 10 28 5 13 5 15 5 53 1 6 . 5 35 6 6 11 5 20 13 32 48 2 19 Power 58 | 1 3 2 1 3 . 1 1 4 . . 1 1 . 8 1 1 . 1 4 . . 1 . 1 3 7 11 . 2 Engine 19 | 1 3 2 1 3 . 1 1 2 . . 1 . . 1 . . . . . . . . . . . . 2 . 1 Core 15 | . . . . . . . . 2 . . . . . 7 1 . . . 1 . . . . 1 1 . 2 . . Reactor 24 | . . . . . . . . . . . . 1 . . . 1 . 1 3 . . 1 . . 2 7 7 . 1 Propulsion 116 | 2 8 5 9 12 2 6 2 6 . 5 . 1 2 14 . 1 . . 5 1 2 3 1 7 1 4 6 . 11 Treads 66 | . . . 4 12 2 6 2 4 . . . . 1 6 . 1 . . 5 1 1 3 . 6 1 4 3 . 4 Leg 32 | 2 8 5 5 . . . . . . 5 . . 1 6 . . . . . . . . . . . . . . . Wheel 9 | . . . . . . . . 2 . . . . . 2 . . . . . . 1 . . 1 . . 3 . . Hover 1 | . . . . . . . . . . . . 1 . . . . . . . . . . . . . . . . . Flight 8 | . . . . . . . . . . . . . . . . . . . . . . . 1 . . . . . 7 Utility 159 | 2 4 2 5 7 2 7 3 7 4 5 4 9 1 21 . 2 . 2 14 3 3 5 4 4 4 12 17 1 5 Device 83 | 1 2 2 2 2 . 5 2 5 3 3 2 4 1 11 . . . 1 6 3 2 2 2 2 3 7 8 1 1 Storage 12 | 1 2 . 1 . . 1 . . . . . 1 . 3 . . . . . . 1 1 . . . . . . 1 Processor 14 | . . . 1 . 1 . . . . . 2 . . . . . . . 2 . . 2 . . . 3 1 . 2 Hackware 8 | . . . . 1 1 . . 1 . . . . . 4 . . . . . . . . . 1 . . . . . Protection 42 | . . . 1 4 . 1 1 1 1 2 . 4 . 3 . 2 . 1 6 . . . 2 1 1 2 8 . 1 Artifact . | . . . . . . . . . . . . . . . . . . . . . . . . . . . . . . Weapon 131 | 3 4 3 7 17 . 3 4 11 1 3 . 4 2 10 . 2 . 2 12 2 1 2 . 8 5 9 14 1 1 Energy Gun 20 | 3 . 1 1 4 . 2 1 1 . 1 . 2 . . . . . . . . 1 1 . . 1 . 1 . . Energy Cannon 21 | . 2 1 4 2 . . . 2 1 . . . 1 1 . 1 . . . . . . . . . . 4 1 1 Ballistic Gun 30 | . 2 1 . 4 . 1 . 4 . . . 1 . 3 . 1 . . 1 . . . . 3 3 3 3 . . Ballistic Cannon 38 | . . . 1 3 . . 2 2 . . . 1 . 6 . . . 1 9 1 . 1 . 2 1 4 4 . . Launcher 18 | . . . . 3 . . 1 1 . 2 . . . . . . . 1 2 1 . . . 3 . 2 2 . . Special Weapon 2 | . . . . 1 . . . . . . . . 1 . . . . . . . . . . . . . . . . Impact Weapon . | . . . . . . . . . . . . . . . . . . . . . . . . . . . . . . Slashing Weapon 2 | . . . 1 . . . . 1 . . . . . . . . . . . . . . . . . . . . . Piercing Weapon . | . . . . . . . . . . . . . . . . . . . . . . . . . . . . . . Special Melee Weapon . | . . . . . . . . . . . . . . . . . . . . . . . . . . . . . . Unidentified Prototypes 68 | . . 3 . 8 . . . 1 1 1 . 10 . 5 . 3 . 1 . . . 6 1 2 4 7 15 . . Corrupted Parts 18 | . . . . . . . . 1 . 4 . 6 . . . 1 . . . . . . 1 . . . 2 . 3 System Corruption 101 | . . . . . . . . 2 . 20 . 24 . . . 4 . . . . . . 7 . . . 6 . 38 Parts Lost 160 | . 3 3 6 4 . . 2 15 1 6 . 6 2 8 1 . . . 16 2 . 6 1 1 2 3 54 . 18 Power 29 | . 1 1 1 1 . . . 3 . . . . . 2 1 . . . 1 1 . . . . . 1 13 . 3 Propulsion 51 | . 1 1 1 2 . . 2 6 1 5 . 1 2 . . . . . 5 1 . 1 1 . . 2 12 . 7 Utility 44 | . . 1 1 . . . . 2 . 1 . 3 . 3 . . . . 4 . . 3 . . 1 . 20 . 5 Weapon 36 | . 1 . 3 1 . . . 4 . . . 2 . 3 . . . . 6 . . 2 . 1 1 . 9 . 3 Highest Loss Streak 13 | . 2 2 2 1 . . 1 6 1 3 . 4 1 4 1 . . . 9 1 . 3 1 1 1 3 13 . 11 To Critical Strikes 3 | . . . . . . . . . . . . . . . . . . . . . . . 1 . . . 2 . . Average Backups 22 | 5 10 18 22 24 24 23 24 23 24 24 24 22 22 23 24 23 22 22 21 23 23 23 20 22 22 23 20 2 3 Power 1 | . 1 2 1 . 1 1 1 1 1 1 1 . 1 1 1 2 2 1 2 1 1 1 2 1 . . . . . Propulsion 2 | 3 4 3 3 4 5 4 2 2 . . . 1 1 1 2 2 2 3 1 2 1 1 . 2 3 3 1 . 1 Utility 10 | . 3 6 10 10 9 8 10 11 13 13 13 11 9 11 10 8 7 7 9 11 12 12 12 11 10 8 7 . . Weapon 7 | . 1 5 6 7 8 9 8 7 8 8 8 6 7 7 8 8 8 8 6 6 7 6 5 6 6 8 10 2 2 Tool/Special . | . . . . . . . . . . . . . . . . . . . . . . . . . . . . . . Unused Backups 92 | 1 2 2 11 9 . 6 6 5 1 2 1 3 . 9 5 3 . 1 5 . 3 2 . 4 1 4 5 . 1 Power 14 | . . 2 . . . . 1 2 1 1 . . . 1 1 . . . 1 . . 1 . . 1 1 1 . . Propulsion 11 | . 2 . . . . . . . . . . . . 1 1 2 . 1 1 . 1 . . . . 2 . . . Utility 41 | 1 . . 6 6 . 3 2 2 . 1 1 3 . 6 2 1 . . 2 . 2 . . 1 . . 1 . 1 Weapon 26 | . . . 5 3 . 3 3 1 . . . . . 1 1 . . . 1 . . 1 . 3 . 1 3 . . Tool/Special . | . . . . . . . . . . . . . . . . . . . . . . . . . . . . . . Average Slot Usage (%) 92 | . 99 99 97 99 100 98 97 93 98 96 98 94 96 95 87 94 98 100 97 89 90 87 76 84 79 84 81 5 27 Engine 3 | . 14 10 9 9 9 6 6 1 6 6 6 1 . . . . . . . . . . . . . . . . 3 Core 2 | . . . . . . . . 3 . . . . . 10 10 5 5 5 5 5 5 2 . 4 2 . . . . Reactor 2 | . . . . . . . . . . . . 4 6 . . 4 5 5 4 4 5 5 5 4 6 10 8 . . Treads 20 | . . . 20 35 36 33 32 28 20 12 12 10 11 9 27 26 27 27 28 25 25 24 16 17 13 14 13 . 1 Leg 5 | . 27 43 14 . . . . . . 13 18 18 15 16 . . . . . . . . . . . . . . . Device 14 | . 14 11 14 7 9 17 13 13 13 17 16 15 18 14 15 16 16 19 19 14 15 13 13 13 12 14 12 4 6 Storage 6 | . 14 11 9 9 9 6 6 6 6 6 6 6 11 6 5 5 5 5 5 5 5 5 5 4 4 4 4 . 1 Processor 6 | . . . 1 . 1 6 6 6 6 6 7 7 6 5 5 5 5 5 6 10 10 11 15 13 12 16 17 . 3 Protection 5 | . . . . 8 1 1 6 5 5 5 6 4 . 2 5 6 11 7 9 5 5 5 6 6 8 8 6 . . Energy Gun 3 | . 15 . 1 8 9 9 11 4 . . 5 5 . . . . . . . . . . 1 . 1 . . . . Energy Cannon 4 | . 3 18 19 6 9 5 . 1 7 11 5 2 9 3 . . 5 4 3 . . . . . . . 2 . 1 Ballistic Gun 4 | . 9 3 . 7 9 8 4 6 6 3 5 10 11 7 . 4 5 5 2 . . . . 2 9 4 1 . . Ballistic Cannon 6 | . . . 4 3 . . 5 5 6 5 . 5 . 4 14 14 9 9 11 19 18 16 12 8 5 7 5 . . Slashing Weapon 1 | . . . 1 1 . 1 . 2 4 3 6 . . 2 1 . . . 1 . 1 2 . 2 . . 1 . . Peak Build Rating 212 | 7 9 16 25 43 43 70 70 71 72 86 85 101 92 114 115 124 122 123 134 128 129 150 134 179 193 203 212 27 113 Average Rating 95 | 5 7 12 20 33 41 57 67 63 66 80 82 92 88 101 113 115 120 119 126 121 122 127 114 155 182 196 177 15 64 On Entrance 84 | . 7 9 13 23 40 41 70 67 67 72 85 80 92 88 114 114 122 121 119 124 121 121 121 110 179 181 200 5 19 Avg Prop Armor Cover (%) 9 | . . . . . . . . 16 15 9 10 6 8 4 . . . . . . 5 . 1 1 6 . 3 . 7 Naked Turns 52 | . . . . . . . . . . . . . . . . . . . . . . . . . . . 41 11 . Heaviest Build 224 | 12 52 53 105 110 103 116 136 128 145 147 127 144 144 207 208 197 175 176 207 189 182 184 186 185 196 210 224 15 48 Greatest Support 255 | 20 20 40 80 80 80 120 120 120 32 60 55 55 55 135 135 135 135 135 185 185 185 189 109 210 210 210 210 3 255 Greatest Overweight (x) 10 | 2 2 1 1 1 1 1 1 7 9 9 2 2 7 10 1 2 1 1 1 1 1 1 2 1 1 . 10 4 5 Average Overweight (x) 1 | . . 1 1 1 1 . . 3 5 2 1 2 2 1 1 1 1 1 . . . . 1 . . . 1 . . Largest Inventory Capacity 35 | 8 20 20 25 25 25 25 25 25 25 25 25 25 25 25 25 25 25 25 25 25 35 25 25 25 25 25 25 5 10 Average Capacity 24 | 7 12 20 23 25 25 25 25 25 25 25 25 25 25 25 25 25 25 25 25 25 25 25 25 25 25 25 24 5 7 Most Carried 25 | 8 17 20 25 25 25 25 25 25 25 25 25 25 25 25 25 25 25 25 25 25 25 25 22 25 25 25 25 5 10 Average Carried 23 | 6 10 18 22 24 24 24 24 24 24 24 24 23 23 24 24 24 24 24 23 24 24 24 21 23 24 24 22 4 6 Final Capacity 25 | 8 20 20 25 25 25 25 25 25 25 25 25 25 25 25 25 25 25 25 25 25 25 25 25 25 25 25 5 5 5 Final Carried 25 | 8 17 20 24 25 25 25 25 25 24 25 25 20 24 25 25 25 25 25 25 25 25 22 22 24 25 25 5 5 . Class Distribution -------------------- 36% | Scavenger-Tank 21% | Gunner 17% | Scavenger-Gunner 5% | Scavenger-Mutant 4% | Tank 4% | Mutant 3% | Commander-Gunner 3% | Commander-Tank Dominant Class ---------------- Mutant | -10/Materials Scavenger-Mutant | -9/Materials Scavenger-Gunner | -8/Materials Commander-Tank | -8/Storage Gunner | -8/Recycling Commander-Gunner | -6/Factory Gunner | -6/Garrison Gunner | -6/Factory Gunner | -6/Lower Caves Gunner | -6/Lower Caves Gunner | -6/Zion Scavenger-Tank | -6/Deep Caves Scavenger-Gunner | -5/Proximity Caves Scavenger-Gunner | -5/Factory Scavenger-Tank | -5/Extension Scavenger-Tank | -5/Cetus Scavenger-Tank | -5/Archives Scavenger-Tank | -5/Hub_04(d) Scavenger-Tank | -4/Factory Scavenger-Tank | -4/Upper Caves Scavenger-Tank | -4/Upper Caves Scavenger-Tank | -4/Warlord Scavenger-Mutant | -3/Proximity Caves Tank | -3/Research Scavenger-Tank | -3/Quarantine Scavenger-Tank | -2/Research Scavenger-Tank | -2/Testing Mutant | -2/Section 7 Mutant | -1/Access Resources | -11 -10 -9 -8 -8 -8 -6 -6 -6 -6 -6 -6 -6 -5 -5 -5 -5 -5 -5 -4 -4 -4 -4 -3 -3 -3 -2 -2 -2 -1 ----------- Run | Yrd Mat Mat Mat Sto Rec Fac Gar Fac Low Low Zio Dee Pro Fac Ext Cet Arc Hub Fac Upp Upp War Pro Res Qua Res Tes Sec Acc Matter Collected 28977 | 280 415 219 337 1175 162 403 781 1418 386 497 125 889 495 2341 1620 469 141 720 2687 1034 260 997 616 1363 2515 1608 4915 . 109 Remotely 9286 | . . . . . . . . . 24 . . . . 876 646 . . 316 1661 . . 315 140 539 1000 180 3589 . . Salvage Created 29922 | 102 809 555 950 2212 320 593 1214 3339 210 663 . 590 504 2199 1687 465 171 1053 3165 383 148 553 256 680 2691 761 3375 . 274 Parts 1283 | 14 44 38 44 115 17 20 63 129 10 25 . 21 35 141 60 18 7 55 142 8 7 11 20 22 102 19 87 . 9 Haulers Intercepted 16 | . 2 2 1 5 . . . 1 . 1 . . . . . . . . . . . . . 2 1 1 . . . Recyclers Shooed 29 | 1 4 . 2 2 . 2 . 11 . . . . . 1 . . . 1 3 . . . . . . . 1 . 1 Parts Field Recycled . | . . . . . . . . . . . . . . . . . . . . . . . . . . . . . . Retrieved Matter . | . . . . . . . . . . . . . . . . . . . . . . . . . . . . . . Parts Self-Destructed 71 | . . . . . . . . . 11 9 . . 24 . . . . . . 8 2 . 17 . . . . . . Prevented 21 | . . . . . . . . . 2 15 . . 4 . . . . . . . . . . . . . . . . Parts Restored . | . . . . . . . . . . . . . . . . . . . . . . . . . . . . . . Kills | -11 -10 -9 -8 -8 -8 -6 -6 -6 -6 -6 -6 -6 -5 -5 -5 -5 -5 -5 -4 -4 -4 -4 -3 -3 -3 -2 -2 -2 -1 ------- Run | Yrd Mat Mat Mat Sto Rec Fac Gar Fac Low Low Zio Dee Pro Fac Ext Cet Arc Hub Fac Upp Upp War Pro Res Qua Res Tes Sec Acc Combat Hostiles Destroyed 512 | . 11 17 22 36 6 10 29 42 2 9 . 6 14 36 26 6 2 15 55 7 2 14 11 15 42 12 63 . 2 Melee 10 | . . 1 . . . . . . . . . . . 2 3 . . . 1 . 1 . . . 2 . . . . Guns 137 | . 10 1 . 23 5 4 8 8 . 1 . 5 3 12 . 2 . 4 4 . . . . 2 20 5 20 . . Cannons 262 | . . 15 21 6 1 4 7 29 2 3 . . 3 14 23 4 2 10 43 6 1 2 6 8 18 5 27 . 2 AOE 90 | . 1 . . 6 . . 13 4 . 4 . 1 8 8 . . . 1 7 1 . 8 5 5 2 2 14 . . Classes Destroyed 32 | 1 6 2 3 2 . 1 . 2 . 1 . 2 . 1 1 . . . . . 1 3 . 1 2 . 3 . . Worker 24 | . 1 1 . 3 . . . 4 . . . . . 4 . . . 1 1 . . . . 1 1 . 7 . . Builder 8 | . . . 1 . . . . 3 . . . . . 2 . . . . 2 . . . . . . . . . . Tunneler 5 | 5 . . . . . . . . . . . . . . . . . . . . . . . . . . . . . Hauler 16 | . 2 2 1 5 . . . 1 . 1 . . . . . . . . . . . . . 2 1 1 . . . Recycler 26 | . 2 . 1 4 . . . 8 . . . . . 3 2 . . . 3 . . . . . 1 . 1 . 1 Carrier 1 | . . . . . . . . . . . . . . . . . . . . . . . . . . . 1 . . Mechanic 14 | . 1 . . 4 . . . 4 . . . . . . . . . . . . . . . . . . 5 . . Operator 4 | . 1 . . 1 . . . . . . . . . . . . . . . . . . . . . . 2 . . Watcher 10 | . . . . 1 . . . 1 . . . . . 1 . 2 . 1 1 . . . . . 2 . 1 . . Swarmer 90 | . . 11 7 5 . 1 12 3 . 4 . . 9 9 . . . 1 10 . . . 10 4 . 3 1 . . Saboteur 3 | . . . . . . . . 1 . . . . . . . . . . . . . 1 . . . . 1 . . Grunt 190 | . 11 4 10 17 . 6 9 22 . 4 . . 2 4 18 . . 3 22 . . 6 . 2 20 2 26 . 2 Brawler 16 | . . . 1 1 . . . 3 . . . . . . . . . 2 2 . . . . . . . 7 . . Duelist 17 | . . . . 2 1 . . 3 . . . . 1 . . . . . 2 . . . . . 2 . 6 . . Protector 6 | . . . . . . . . 1 . . . . . . . . . . . . . . . . 1 . 4 . . Researcher 3 | . . . . . . . . . . . . . . . . . . . . . . . . . 1 . 2 . . Sentry 58 | . . 2 3 8 5 2 2 2 . . . . 1 4 6 . 2 4 5 1 1 . . 4 3 3 . . . Demolisher 2 | . . . . . . . . . . . . . . . . . . . . . . 1 . . . 1 . . . Specialist 4 | . . . . . . . . . . . . . . . . . . . . . . 1 . . 3 . . . . Hunter 43 | . . . 1 3 . . 4 1 2 1 . . 1 9 . . . 3 2 4 . 1 . . 2 2 7 . . Programmer 45 | . . . . . . 1 2 6 . . . . . 8 . . . 2 9 2 . . 1 1 7 . 6 . . Heavy 5 | . . . . . . . . . . . . . . 2 . . . . 3 . . . . . . . . . . Q-Series 2 | . . . . . . . . . . . . . . . . . . . . . . . . . . . 2 . . Behemoth 2 | . . . . . . . . . . . . . . . 1 . . . . . . 1 . . . . . . . Cetus Guard 6 | . . . . . . . . . . . . . . . . 6 . . . . . . . . . . . . . Enhanced Grunt 1 | . . . . . . . . . . . . . . . . . . 1 . . . . . . . . . . . Lightning 3 | . . . . . . . . . . . . . . . . . . . . . . . . . 3 . . . . Striker 7 | . . . . . . . . . . . . . . . . . . . . . . 3 . 2 . 1 1 . . Executioner 2 | . . . . . . . . . . . . . . . . . . . . . . . . 2 . . . . . Alpha 7 2 | . . . . . . . . . . . . . . . . . . . . . . . . . 1 . 1 . . Fortress 1 | . . . . . . . . . . . . . . . . . . . . . . . . . . . 1 . . Z-Light 3 | . . . . . . . . . . . . 3 . . . . . . . . . . . . . . . . . Decomposer 1 | . . . . . . . . . 1 . . . . . . . . . . . . . . . . . . . . Packrat 1 | . . . . . . . . . 1 . . . . . . . . . . . . . . . . . . . . Samaritan 3 | . . . . . . . . . . 2 . . 1 . . . . . . . . . . . . . . . . Golem 2 | . . . . . . . . . . . . 2 . . . . . . . . . . . . . . . . . Thug 1 | . . . . 1 . . . . . . . . . . . . . . . . . . . . . . . . . Savage 1 | . . . . . . . . . . . . . . . 1 . . . . . . . . . . . . . . Guerrilla 1 | . . . . . . . . . . . . . . . . . . . 1 . . . . . . . . . . Mutant 1 | . . . . . . . . . . . . . . . . . . . . . 1 . . . . . . . . Best Kill Streak 19 | 1 5 4 5 12 2 3 9 15 2 4 . 2 5 5 6 4 1 5 12 2 1 13 5 4 5 3 19 . 2 Combat Bots Only 13 | . 4 4 4 11 2 3 9 9 2 4 . 2 5 5 5 3 1 4 10 2 1 13 5 4 5 3 13 . 2 Max Kills in Single Turn 9 | 1 2 2 2 4 1 1 3 9 2 2 . 2 3 4 3 2 1 2 4 1 1 2 5 2 3 2 5 . 1 Gunslinging 1 | . . . . . . . . . . . . . . . . . . . . . . . . . 1 . . . . Exploded 5 | . 1 . . 3 . . 3 3 . 2 . 1 3 3 . . . 1 2 1 . 2 5 2 2 2 5 . . Melee 1 | . . 1 . . . . . . . . . . . 1 1 . . . 1 . 1 . . . 1 . . . . Uniques/NPCs Destroyed 1 | . . . . . . . . . . . . 1 . . . . . . . . . . . . . . . . . Z-Imprinter (-6/Deep Caves) Combat | -11 -10 -9 -8 -8 -8 -6 -6 -6 -6 -6 -6 -6 -5 -5 -5 -5 -5 -5 -4 -4 -4 -4 -3 -3 -3 -2 -2 -2 -1 -------- Run | Yrd Mat Mat Mat Sto Rec Fac Gar Fac Low Low Zio Dee Pro Fac Ext Cet Arc Hub Fac Upp Upp War Pro Res Qua Res Tes Sec Acc Hostile Shots Fired 4329 | . 66 105 107 163 18 79 165 281 15 67 . 87 65 246 122 10 6 67 412 96 14 162 38 98 482 97 832 . 429 Missed 1279 | . 25 28 22 48 6 29 43 99 5 16 . 18 20 64 27 6 2 12 135 36 4 44 9 29 137 28 200 . 187 Hits 3050 | . 41 77 85 115 12 50 122 182 10 51 . 69 45 182 95 4 4 55 277 60 10 118 29 69 345 69 632 . 242 Melee 115 | . . . . 7 . . . 7 . . . . . . . . . 5 1 . . 12 . 1 12 2 68 . . Projectile 2935 | . 41 77 85 108 12 50 122 175 10 51 . 69 45 182 95 4 4 50 276 60 10 106 29 68 333 67 564 . 242 AOE 5 | . . . . . . . . . . . . . . 1 . . . . . . . 4 . . . . . . . Critical Strikes 183 | . . . 3 3 2 1 1 10 . 1 . . . 12 5 2 . 3 27 3 . 7 1 6 26 1 56 . 13 Actively Blocked 110 | . . . . . . . . . . . . . . 2 5 2 . 3 27 1 . 4 . 6 16 1 36 . 7 Part Disruptions 9 | . . . . . . . . . . . . . . . . . . . . . 2 . . . 2 . 4 . 1 Damage Taken 49495 | . 772 748 1123 1785 182 489 1732 3500 115 875 . 1559 399 2560 1078 55 54 725 4906 461 53 2389 353 1032 3002 1219 12911 . 5418 Core 4777 | . 225 68 72 138 . 21 93 161 16 113 . 173 . 221 36 . . 66 79 11 11 235 . 153 167 95 1020 . 1603 Absorbed by Shields 13306 | . . . . . . 63 121 . . . . 65 369 1073 1073 59 56 706 1434 491 60 738 349 1050 3005 863 1731 . . Reduced by Siege Mode 206 | . . . . . . . . . . . . . . . . . . . 40 . . 71 . . 49 . 46 . . Redirected to Shielding 222 | . . . . . . . . . . . . . . . . . . . . . . . . . . . 222 . . Ignored by Resistances 7178 | . . . . . . . 125 . 55 . . 724 . 525 427 65 . . . . . 300 . . 1402 100 3455 . . Regen/Repaired (Parts) 2239 | . . . . 18 . 35 200 443 . . . . . 310 . . . . . . . 32 . . . 782 419 . . Core Remaining (%) 56 | 100 10 83 . . 61 . . . . . . . 32 . . . . 67 . . . . 70 . 62 . . 23 . Volleys Fired 1319 | 32 67 41 55 97 8 21 82 91 3 16 . 35 17 74 31 11 6 38 136 16 4 16 10 50 110 31 203 1 17 Largest 4 | 1 2 2 3 3 3 4 4 4 4 4 . 4 4 4 3 4 4 4 4 4 4 4 4 4 4 3 4 1 1 Hottest 291 | 40 120 128 189 185 144 205 226 214 253 263 . 291 246 258 167 188 227 227 239 193 179 186 179 181 171 184 216 120 120 Shots Fired 3296 | 32 117 82 143 246 25 83 180 244 14 45 . 92 48 221 93 43 24 98 340 46 11 34 33 108 370 83 424 1 16 Gun 1363 | 32 111 18 2 187 17 65 121 95 4 8 . 56 29 105 . 11 7 23 38 . . 1 2 23 256 40 112 . . Cannon 1826 | . 6 64 141 53 8 18 42 144 10 29 . 32 14 113 93 32 17 75 292 40 11 23 30 81 114 42 285 1 16 Launcher 107 | . . . . 6 . . 17 5 . 8 . 4 5 3 . . . . 10 6 . 10 1 4 . 1 27 . . Special . | . . . . . . . . . . . . . . . . . . . . . . . . . . . . . . Kinetic 2192 | . 28 18 34 126 9 35 70 162 7 18 . 62 29 173 93 43 19 61 231 40 11 23 30 99 349 82 334 . 6 Thermal 850 | 32 6 64 101 114 16 48 93 77 7 19 . 26 14 45 . . 5 37 99 . . . . . . . 36 1 10 Explosive 63 | . . . . 6 . . . . . 1 . . 3 3 . . . . 6 6 . 6 1 4 . 1 26 . . Electromagnetic 151 | . 83 . 8 . . . 17 5 . 7 . 4 2 . . . . . 4 . . 4 . . . . 17 . . Entropic 40 | . . . . . . . . . . . . . . . . . . . . . . 1 2 5 21 . 11 . . Robot Hit Streak 30 | 3 9 13 15 13 8 9 15 14 5 9 . 8 5 10 7 8 4 11 17 10 8 11 3 19 30 16 18 . 3 Robot Miss Streak 10 | 6 4 3 3 6 2 5 5 3 1 3 . 10 4 4 3 5 1 2 7 3 1 1 3 4 4 4 9 . 2 Penetration Max 3 | . . . . . . . 1 2 . . . 2 1 1 2 1 . 1 1 . . . . 1 1 . 3 . . Secondary Targets 40 | . 2 . . 7 . . . . . . . . . . . . . . 21 . . . 3 . 5 2 . . . Max Gunslinging Chain 2 | . 1 . . 1 . . . . . . . . . . . . . . 2 . . . 1 . 1 1 . . . Shots Hit Robots 2035 | 16 68 56 91 185 15 48 81 172 9 30 . 37 20 136 59 21 15 50 200 26 5 27 14 67 265 52 263 . 7 Core Hits 1286 | 5 34 20 45 175 7 21 47 103 8 19 . 22 25 75 35 13 3 27 139 16 4 31 15 44 131 26 193 . 3 Critical Kills 129 | . . . 1 . . 2 . 9 . 1 . 4 2 21 14 8 2 11 26 3 . . . . 1 2 22 . . Critical Parts Destroyed 142 | . . . . . . . . 18 1 3 . 5 2 15 10 8 1 5 33 3 . . . 2 2 2 32 . . Critical Strikes 352 | . 1 . 1 1 1 6 5 33 1 4 . 11 4 39 35 17 6 22 66 7 . 3 1 5 7 6 69 . 1 Burn 6 | . . . . . 1 3 2 . . . . . . . . . . . . . . . . . . . . . . Meltdown 7 | . . . 1 . . 2 . 1 . . . . . . . . . . . . . . . . . . 3 . . Destroy 276 | . . . . . . . . 26 1 4 . 11 4 36 25 17 6 21 59 6 . . . 1 1 5 53 . . Blast 53 | . . . . 1 . . 3 6 . . . . . 3 7 . . . 7 1 . 3 1 3 3 1 13 . 1 Corrupt 1 | . 1 . . . . . . . . . . . . . . . . . . . . . . . . . . . . Sever 6 | . . . . . . 1 . . . . . . . . 3 . . 1 . . . . . . 1 . . . . Detonate 3 | . . . . . . . . . . . . . . . . . . . . . . . . 1 2 . . . . Melee Attacks 175 | . . . 2 3 . 10 . 17 26 8 . 1 1 31 13 . . 5 17 4 3 . . 4 11 . 19 . . Impact . | . . . . . . . . . . . . . . . . . . . . . . . . . . . . . . Slashing 175 | . . . 2 3 . 10 . 17 26 8 . 1 1 31 13 . . 5 17 4 3 . . 4 11 . 19 . . Piercing . | . . . . . . . . . . . . . . . . . . . . . . . . . . . . . . Sneak Attacks 24 | . . . 1 . . . . 6 2 4 . . 1 3 3 . . . 1 . . . . 1 1 . 1 . . Combat Hostiles . | . . . . . . . . . . . . . . . . . . . . . . . . . . . . . . Follow-up Attacks . | . . . . . . . . . . . . . . . . . . . . . . . . . . . . . . Damage Inflicted 81524 | 171 1063 1038 2008 3831 332 1091 2967 8159 374 1635 . 759 948 4184 2903 396 279 1224 7478 1335 175 2807 993 3471 9227 2546 19462 . 668 Guns 16982 | 171 855 104 34 2323 245 721 1180 1063 9 31 . 297 76 511 . 62 31 121 280 . . . 41 619 5390 717 2101 . . Cannons 39531 | . 89 915 1855 689 87 271 750 4611 216 401 . 275 159 2138 2434 334 248 849 5038 537 90 600 476 1670 3166 1586 9379 . 668 Explosions 21474 | . 119 . 40 819 . . 1037 1958 . 703 . 118 625 1064 . . . 128 2025 561 . 2207 476 1107 453 243 7791 . . Melee 3428 | . . . 72 . . 98 . 526 149 500 . 69 88 446 469 . . 83 122 237 85 . . 75 218 . 191 . . Ramming 109 | . . 19 7 . . 1 . 1 . . . . . 25 . . . 43 13 . . . . . . . . . . Kinetic 39730 | . 218 104 356 1413 93 288 1092 3528 62 142 . 393 76 1775 2434 396 166 419 3566 537 90 600 476 2107 7733 2303 8783 . 580 Thermal 20401 | 171 208 915 1369 1599 239 704 1009 3635 163 453 . 179 172 1411 . . 113 679 1937 . . 434 . 215 453 . 4255 . 88 Explosive 12103 | . . . . 819 . . . . . . . . 520 527 . . . . 1450 561 . 1032 476 892 . 243 5583 . . Electromagnetic 4428 | . 637 . 204 . . . 866 469 . 540 . 118 92 . . . . . 390 . . 741 . . . . 371 . . Impact . | . . . . . . . . . . . . . . . . . . . . . . . . . . . . . . Slashing 3428 | . . . 72 . . 98 . 526 149 500 . 69 88 446 469 . . 83 122 237 85 . . 75 218 . 191 . . Piercing . | . . . . . . . . . . . . . . . . . . . . . . . . . . . . . . Entropic 1325 | . . . . . . . . . . . . . . . . . . . . . . . 41 182 823 . 279 . . Highest Corruption 61 | . . . 1 1 2 1 1 8 8 25 25 24 24 12 13 17 17 23 7 7 7 7 9 1 27 . 47 47 61 Average Corruption 10 | . . . 1 1 1 1 1 3 6 20 25 23 24 8 12 13 17 17 4 7 7 3 7 1 14 . 27 47 22 Corruption Purged 3 | . . . . . . . . . 3 . . . . . . . . . . . . . . . . . . . . Corruption Blocked . | . . . . . . . . . . . . . . . . . . . . . . . . . . . . . . Effects 974 | . . . 7 24 21 3 13 45 46 76 3 93 55 41 59 29 11 60 55 57 32 3 20 7 69 . 128 7 10 Message Errors 220 | . . . 3 6 10 . 5 7 10 18 . 24 14 9 9 7 4 17 7 14 7 . 7 . 10 . 30 2 . Matter Fused 202 | . . . . 6 1 1 2 10 14 18 2 20 7 11 18 4 . 16 13 10 5 1 5 2 16 . 18 1 1 Heat Flow Errors 124 | . . . . 3 2 . 1 10 2 8 . 7 7 5 10 3 1 9 9 12 3 . 2 2 7 . 15 3 3 Energy Discharges 123 | . . . 2 2 3 . 1 3 5 11 1 14 6 5 11 5 4 7 7 9 3 1 2 2 6 . 12 1 . Parts Rejected 16 | . . . 1 . . . . 1 . . . . 2 . . 1 . 1 2 . . . . . 4 . 4 . . Parts Fused 11 | . . . . . 1 . . 1 1 . . 1 2 . . 1 . 1 . 1 1 . . . . . 1 . . Data Loss (minor) 107 | . . . 1 1 1 2 1 6 6 8 . 14 10 . 6 5 1 5 8 7 5 . . 1 6 . 12 . 1 Data Loss (major) 50 | . . . . 3 2 . . 2 3 4 . 6 3 3 . . . 1 3 2 2 1 1 . 2 . 11 . 1 Misfires 46 | . . . . 1 1 . 2 1 2 6 . 3 2 4 2 2 1 . 1 . 4 . 1 . 6 . 7 . . Alerts 27 | . . . . 1 . . 1 . 3 1 . 1 2 3 3 1 . 1 3 2 2 . . . 3 . . . . Misdirections 8 | . . . . . . . . . . . . . . . . . . 1 . . . . . . 2 . 2 . 3 Weapon Failures 40 | . . . . 1 . . . 4 . 2 . 3 . 1 . . . 1 2 . . . 2 . 7 . 16 . 1 Overload Shots 2 | . . . . . . . . . . . . 2 . . . . . . . . . . . . . . . . . Overflow Damage 3153 | . 20 12 21 58 . 10 79 616 . 139 . 15 24 265 124 . . 5 103 44 . 52 2 92 84 65 1178 . 145 Projectiles 1277 | . 5 12 21 . . 10 31 229 . . . . 8 65 84 . . 5 49 4 . . 2 43 21 65 478 . 145 Explosions 1415 | . 15 . . 58 . . 48 232 . 20 . 15 16 171 . . . . 54 . . 52 . 49 63 . 622 . . Melee 461 | . . . . . . . . 155 . 119 . . . 29 40 . . . . 40 . . . . . . 78 . . Knockbacks 190 | . . . 4 . . . 7 20 . 1 . 2 . 8 11 . . 1 34 5 . 6 5 4 17 10 52 . 3 Impact 1 | . . . . . . . . . . . . . . . . . . 1 . . . . . . . . . . . Kinetic 176 | . . . 4 . . . 6 18 . 1 . 2 . 8 9 . . . 31 5 . 6 5 4 16 10 48 . 3 Secondary 13 | . . . . . . . 1 2 . . . . . . 2 . . . 3 . . . . . 1 . 4 . . Self-Inflicted Damage 1849 | . 32 . . . . . 43 144 . 46 . . . 41 . . . 76 67 . . 145 35 . . . 1220 . . Shots 25 | . 1 . . . . . 2 3 . 1 . . . 2 . . . 1 1 . . 6 1 . . . 7 . . Rammed 7 | . . . . . . 1 . 2 . . . . . . . . . 3 1 . . . . . . . . . . Targets Rammed 14 | . . 2 3 . . 1 . 2 . . . . . 1 . . . 4 1 . . . . . . . . . . Kicked 6 | . . 2 3 . . . . . . . . . . 1 . . . . . . . . . . . . . . . Crushed 1 | . . . . . . . . . . . . . . . . . . 1 . . . . . . . . . . . Highest Temperature 557 | . 287 153 324 260 214 234 105 227 114 103 . 355 408 326 236 115 160 282 557 215 304 96 246 94 170 39 416 179 216 Average Temperature 80 | . 81 55 100 67 37 62 77 78 49 49 . 97 95 97 38 36 67 84 98 90 109 24 95 19 77 16 83 72 70 Received Heat Transfer 7500 | . 291 117 486 639 81 193 157 990 . 183 . 512 48 57 264 4 8 26 697 12 4 233 . 42 536 67 1538 . 315 Effects 12 | . 2 . . . . . . . . . . . 1 1 . . . . 1 . . . . . . . 7 . . Shutdowns 4 | . . . . . . . . . . . . . . . . . . . . . . . . . . . 4 . . Energy Bleed 4 | . 1 . . . . . . . . . . . . 1 . . . . . . . . . . . . 2 . . Interference 1 | . 1 . . . . . . . . . . . . . . . . . . . . . . . . . . . . Short Circuit 1 | . . . . . . . . . . . . . . . . . . . . . . . . . . . 1 . . Damage (minor) 2 | . . . . . . . . . . . . . 1 . . . . . 1 . . . . . . . . . . Siege Activations 6 | . . . . . . . . . . . . . . . . . . . 1 . . 2 . . 2 . 1 . . Total Turns 122 | . . . . . . . . . . . . . . . . . . . 24 . . 20 . . 37 . 41 . . Longest Duration 41 | . . . . . . . . . . . . . . . . . . . 24 . . 11 . . 22 . 41 . . Martial Activations . | . . . . . . . . . . . . . . . . . . . . . . . . . . . . . . Shielding Activations . | . . . . . . . . . . . . . . . . . . . . . . . . . . . . . . Robots Disrupted 3 | . 2 . . . . . . . . . . . . . . . 1 . . . . . . . . . . . . Combat Hostiles 2 | . 1 . . . . . . . . . . . . . . . 1 . . . . . . . . . . . . Robots Corrupted 6 | . . . . . . . 1 . . 1 . . . . . . . . . . . 4 . . . . . . . Combat Hostiles 6 | . . . . . . . 1 . . 1 . . . . . . . . . . . 4 . . . . . . . Parts Fried 11 | . 3 . 1 . . . 1 1 . 2 . 1 . . . . . . 1 . . 1 . . . . . . . Impact Corruptions 1 | . . . . . . . . . . . . . . . . . . . . . . . . . 1 . . . . Robots Melted 8 | . . . 1 1 . 2 . 1 . . . . . . . . . . . . . . . . . . 3 . . Combat Hostiles 7 | . . . 1 1 . 2 . 1 . . . . . . . . . . . . . . . . . . 2 . . Parts Melted 34 | . . 3 5 5 1 5 1 4 2 . . 2 . 2 . . . . . . . . . . . . 4 . . Heat Transferred 22200 | 400 385 1887 2722 2548 461 1493 2053 3564 224 611 . 237 300 1800 . . . 150 100 . . 450 . 150 125 . 2466 . 74 Parts Sabotaged 7 | . . . . . . . . . . . . . . . . . . . . . . 4 . . 1 . 2 . . Parts Stolen . | . . . . . . . . . . . . . . . . . . . . . . . . . . . . . . Parts Stripped . | . . . . . . . . . . . . . . . . . . . . . . . . . . . . . . Power Chain Reactions 20 | . 2 . 1 . . . 5 2 . 3 . . 1 . . . . 1 2 . . 2 . . . . 1 . . Alert | -11 -10 -9 -8 -8 -8 -6 -6 -6 -6 -6 -6 -6 -5 -5 -5 -5 -5 -5 -4 -4 -4 -4 -3 -3 -3 -2 -2 -2 -1 ------- Run | Yrd Mat Mat Mat Sto Rec Fac Gar Fac Low Low Zio Dee Pro Fac Ext Cet Arc Hub Fac Upp Upp War Pro Res Qua Res Tes Sec Acc Maximum Alert Level 5 | . . 1 1 3 1 1 4 4 . . . . . 3 4 3 1 2 3 . . . . 1 4 2 5 4 3 Low Security (%) 32 | 100 100 80 87 16 90 33 . . . . . . . 40 . . . 15 27 . . . . 86 17 . . . . Level 1 13 | . . 19 12 10 9 66 24 . . . . . . 18 . . 100 8 25 . . . . 13 17 . 5 . . Level 2 24 | . . . . 51 . . 10 29 . . . . . 7 76 97 . 76 8 . . . . . 28 100 3 . . Level 3 17 | . . . . 21 . . 30 22 . . . . . 34 18 2 . . 37 . . . . . 20 . 28 . 100 Level 4 7 | . . . . . . . 34 48 . . . . . . 5 . . . . . . . . . 15 . 12 100 . Level 5 4 | . . . . . . . . . . . . . . . . . . . . . . . . . . . 49 . . High Security . | . . . . . . . . . . . . . . . . . . . . . . . . . . . . . . Max Security . | . . . . . . . . . . . . . . . . . . . . . . . . . . . . . . Peak Influence 2682 | 5 92 230 235 762 300 364 1512 1381 . . . . . 1084 1224 708 364 534 1084 . . . . 294 1175 671 2682 1507 1007 Initial 1507 | . . . 73 52 276 285 216 793 . . . . . 37 529 681 259 102 238 . . . . 6 163 648 323 1507 864 Average 543 | . 31 114 155 527 69 234 893 1009 . . . . . 403 685 599 321 412 493 . . . . 77 588 604 1468 1474 884 Influence Increases 21885 | 25 370 506 629 1544 293 878 1356 1353 55 210 . . 365 1780 1427 435 175 904 1846 190 20 341 250 728 1583 421 3601 3 597 Destroy 0b10 Robot/C 11140 | . 220 340 440 840 160 340 600 820 40 180 . . 280 720 800 200 80 460 1100 140 20 300 220 300 840 240 1340 . 120 Destroy 0b10 Robot/NC 630 | 25 35 15 15 95 10 5 . 110 5 10 . . . 50 25 10 . 25 35 5 . . . 15 30 5 100 . 5 Destroy Leader 1976 | . 54 64 102 214 . 82 40 184 10 20 . . 40 182 94 10 . 104 242 30 . . 30 84 96 62 202 . 30 Allied During Kill 1045 | . . . . 171 34 74 12 . . . . . . . 292 159 65 117 . . . 11 . . . . 34 . 76 Successful Hack 576 | . 37 26 5 42 29 33 35 53 . . . . . 23 18 9 . 41 42 . . . . 80 32 . 47 . 24 Select Force Hacks 90 | . . . . 30 60 . . . . . . . . . . . . . . . . . . . . . . . . Disable Machine 1365 | . 15 . 15 90 . 60 60 90 . . . . . 255 90 15 30 60 90 . . . . 45 165 15 225 . 45 Anti-Garrison Action 750 | . . . . . . . 450 . . . . . . . . . . . . . . . . . 150 . 150 . . Destroy Structure 2818 | . 9 1 7 47 . 34 99 51 . . . . . 310 78 32 . 82 292 . . . . 204 180 69 1278 3 42 Advance Influence 250 | . . . . . . 250 . . . . . . . . . . . . . . . . . . . . . . . Partial Spotted 30 | . . . . . . . . . . . . . . . . . . . 15 . . . . . 15 . . . . Lose Combat Pursuer 1215 | . . 60 45 15 . . 60 45 . . . . 45 240 30 . . 15 30 15 . 30 . . 75 30 225 . 255 Influence Decreases 21074 | 25 370 332 679 958 918 654 153 1529 1057 544 . . 304 759 1291 1005 529 710 1251 1031 262 138 443 447 722 998 1496 1243 1226 Entered New Map 7261 | . . . 101 72 434 50 93 719 495 64 . . . 24 553 537 389 192 250 401 47 . 203 4 128 504 252 1173 576 Time Decay 10987 | 25 340 302 518 706 484 494 . 620 542 440 . . 294 505 568 368 100 498 691 610 215 52 230 433 574 464 684 60 170 Lost Part 1509 | . 30 30 60 40 . . 20 150 10 40 . . 10 80 10 . . . 160 20 . 59 10 10 20 30 540 . 180 Lost Ally 1017 | . . . . 140 . 110 40 40 10 . . . . . 160 100 40 20 . . . 27 . . . . 20 10 300 Purge Threat 300 | . . . . . . . . . . . . . . 150 . . . . 150 . . . . . . . . . . Squads Dispatched 127 | . 2 . 2 10 . 7 . 15 . . . . . 13 3 . . 7 16 . . . . 7 11 1 26 2 5 Investigation 18 | . . . 1 2 . 3 . 1 . . . . . 4 1 . . 1 . . . . . 3 . . 1 . 1 Extermination 26 | . . . . . . 2 . 4 . . . . . 4 . . . 1 5 . . . . . 4 . 5 . 1 Reinforcement 38 | . 2 . 1 2 . . . 3 . . . . . 5 2 . . 4 5 . . . . 1 2 1 6 2 2 Assault 33 | . . . . 3 . . . 4 . . . . . . . . . 1 6 . . . . . 5 . 13 . 1 Garrison 12 | . . . . 3 . 2 . 3 . . . . . . . . . . . . . . . 3 . . 1 . . Intercept . | . . . . . . . . . . . . . . . . . . . . . . . . . . . . . . Searches Triggered . | . . . . . . . . . . . . . . . . . . . . . . . . . . . . . . Construction Impeded 13 | . . . 1 1 . . . 3 . . . . . 3 1 . . 1 1 . . . . . 1 . 1 . . Haulers Reinforced 2 | . . . . . . . . . . . . . . . . . . 1 . . . . . . . . 1 . . Active Scanning Responses . | . . . . . . . . . . . . . . . . . . . . . . . . . . . . . . Cargo Convoy Interrupts 1 | . . . . . . . . . . . . . . . . . . . 1 . . . . . . . . . . Stealth | -11 -10 -9 -8 -8 -8 -6 -6 -6 -6 -6 -6 -6 -5 -5 -5 -5 -5 -5 -4 -4 -4 -4 -3 -3 -3 -2 -2 -2 -1 --------- Run | Yrd Mat Mat Mat Sto Rec Fac Gar Fac Low Low Zio Dee Pro Fac Ext Cet Arc Hub Fac Upp Upp War Pro Res Qua Res Tes Sec Acc Distress Signals 55 | . 3 1 6 4 . 1 . 8 . . . . . 3 3 2 . 2 2 . . . . 6 2 8 1 2 1 Communications Jammed 12 | . . . . . . . . . . . . . . 12 . . . . . . . . . . . . . . . Distress Signals 1 | . . . . . . . . . . . . . . 1 . . . . . . . . . . . . . . . Times Spotted 890 | . 29 22 35 48 8 18 32 56 1 11 . 13 18 59 42 9 6 27 75 8 2 52 11 23 75 43 113 2 52 Peak Tracking Total 24 | . 3 4 5 7 5 3 5 9 2 5 . 5 5 6 6 5 1 4 8 2 1 17 5 5 10 8 14 3 24 Tactical Retreats 59 | . . 3 3 1 . . 4 3 . . . . 3 13 2 . . 1 2 1 . 2 . . 3 2 11 . 5 Traps | -11 -10 -9 -8 -8 -8 -6 -6 -6 -6 -6 -6 -6 -5 -5 -5 -5 -5 -5 -4 -4 -4 -4 -3 -3 -3 -2 -2 -2 -1 ------- Run | Yrd Mat Mat Mat Sto Rec Fac Gar Fac Low Low Zio Dee Pro Fac Ext Cet Arc Hub Fac Upp Upp War Pro Res Qua Res Tes Sec Acc Traps Triggered 15 | . 1 . . 1 . . 4 . . . . . . 2 1 . . . . . 1 . . 2 1 . 2 . . Indirectly 3 | . . . . . . . 3 . . . . . . . . . . . . . . . . . . . . . . Trap Hack Attempts . | . . . . . . . . . . . . . . . . . . . . . . . . . . . . . . Triggered . | . . . . . . . . . . . . . . . . . . . . . . . . . . . . . . Disarmed . | . . . . . . . . . . . . . . . . . . . . . . . . . . . . . . Reprogrammed . | . . . . . . . . . . . . . . . . . . . . . . . . . . . . . . Reused . | . . . . . . . . . . . . . . . . . . . . . . . . . . . . . . Traps Extracted . | . . . . . . . . . . . . . . . . . . . . . . . . . . . . . . Installed . | . . . . . . . . . . . . . . . . . . . . . . . . . . . . . . Triggered . | . . . . . . . . . . . . . . . . . . . . . . . . . . . . . . Machines | -11 -10 -9 -8 -8 -8 -6 -6 -6 -6 -6 -6 -6 -5 -5 -5 -5 -5 -5 -4 -4 -4 -4 -3 -3 -3 -2 -2 -2 -1 ---------- Run | Yrd Mat Mat Mat Sto Rec Fac Gar Fac Low Low Zio Dee Pro Fac Ext Cet Arc Hub Fac Upp Upp War Pro Res Qua Res Tes Sec Acc Machines Disabled 106 | . 1 . 1 6 . 4 10 6 . . . . . 17 6 2 2 4 6 . 1 1 . 3 13 1 19 . 3 Max in Single Turn 6 | . 1 . 1 1 . 1 2 4 . . . . . 6 1 1 1 2 2 . 1 1 . 1 1 1 2 . 1 Garrison Access 5 | . . . . . . . . . . . . . . . . . . . 1 . . . . 1 1 1 1 . . Garrison Relay 4 | . . . . . . . 4 . . . . . . . . . . . . . . . . . . . . . . Phase Generator 1 | . . . . . . . 1 . . . . . . . . . . . . . . . . . . . . . . Network Hub 2 | . . . . . . . . . . . . . . . . . . 2 . . . . . . . . . . . Energy Cycler 2 | . . . . . . . . . . . . . . . 1 . . . . . . . . . . . . . 1 Machines Repaired . | . . . . . . . . . . . . . . . . . . . . . . . . . . . . . . Machines Dismantled 10 | . . . . 1 . . . . . . . . . . 2 2 . 2 . . . 1 . 2 . . . . . Machines Sabotaged . | . . . . . . . . . . . . . . . . . . . . . . . . . . . . . . Overloaded Fab Kills . | . . . . . . . . . . . . . . . . . . . . . . . . . . . . . . Hacking | -11 -10 -9 -8 -8 -8 -6 -6 -6 -6 -6 -6 -6 -5 -5 -5 -5 -5 -5 -4 -4 -4 -4 -3 -3 -3 -2 -2 -2 -1 --------- Run | Yrd Mat Mat Mat Sto Rec Fac Gar Fac Low Low Zio Dee Pro Fac Ext Cet Arc Hub Fac Upp Upp War Pro Res Qua Res Tes Sec Acc Machines Accessed 124 | . 7 2 3 14 8 4 3 8 1 2 . . . 11 10 2 . 8 7 . 1 6 . 5 11 . 8 1 2 Terminals 89 | . 6 1 3 12 6 1 3 5 . . . . . 9 10 2 . 8 5 . . . . 2 9 . 6 . 1 Fabricators 6 | . . . . . . 1 . 2 . . . . . 1 . . . . . . . . . 1 . . 1 . . Repair Stations 1 | . . . . . . . . 1 . . . . . . . . . . . . . . . . . . . . . Recycling Units 7 | . 1 . . 2 2 1 . . . . . . . . . . . . . . . . . 1 . . . . . Scanalyzers 9 | . . 1 . . . . . . . . . . . 1 . . . . 2 . . . . . 2 . 1 1 1 Garrison Access 2 | . . . . . . 1 . . . . . . . . . . . . . . . . . 1 . . . . . Total Hacks 315 | . 19 6 8 32 21 9 6 24 1 7 . . . 28 16 4 . 23 25 . 1 16 . 22 17 . 23 2 5 Successful 149 | . 11 3 1 21 9 6 3 8 1 7 . . . 13 5 2 . 9 7 . 1 16 . 6 8 . 11 . 1 Failed 161 | . 8 2 7 10 11 3 3 16 . . . . . 15 11 2 . 14 17 . . . . 16 8 . 12 2 4 Catastrophic 40 | . 1 1 3 2 2 . . 1 . . . . . 3 4 . . 3 7 . . . . 5 2 . 3 1 2 Database Lockouts 5 | . . 1 . 1 1 . . . . . . . . . . . . . 1 . . . . . 1 . . . . Manual 108 | . 10 3 7 10 18 1 . 1 . . 6 . . 10 4 1 . 11 16 . . . . 6 2 . 2 . . Terminals 228 | . 16 5 8 29 19 3 6 16 . . . . . 20 16 4 . 23 20 . . . . 13 12 . 16 . 2 Fabricators 21 | . . . . . . 4 . 4 . . . . . 3 . . . . . . . . . 5 . . 5 . . Repair Stations 4 | . . . . . . . . 4 . . . . . . . . . . . . . . . . . . . . . Recycling Units 11 | . 3 . . 3 2 1 . . . . . . . . . . . . . . . . . 2 . . . . . Scanalyzers 23 | . . 1 . . . . . . . . . . . 5 . . . . 5 . . . . . 5 . 2 2 3 Garrison Access 3 | . . . . . . 1 . . . . . . . . . . . . . . . . . 2 . . . . . Terminal Hacks 109 | . 8 2 1 18 5 1 3 4 1 7 . . . 6 5 2 . 7 5 . 1 16 . 3 7 . 7 . . Record 24 | . . . . . . . . 1 . 6 . . . . . 1 . 1 . . . 7 . 2 5 . 1 . . Part Schematic 4 | . 1 . . 1 1 . . . . . . . . 1 . . . . . . . . . . . . . . . Robot Analysis 7 | . 2 1 . . 3 . . . . . . . . . . . . 1 . . . . . . . . . . . Prototype ID Bank 9 | . . . . 1 . . . . . . . . . . . . . . . . . 8 . . . . . . . Open Door 17 | . . . . 4 . . 1 . 1 1 . . . 1 3 1 . . . . 1 1 . . 2 . 1 . . Open DSF 1 | . . . . . . . . . . . . . . . . . . . 1 . . . . . . . . . . Branch Access Points 5 | . . 1 . . . . . 1 . . . . . 1 . . . . 1 . . . . 1 . . . . . Emergency Access Points 1 | . . . . . . . 1 . . . . . . . . . . . . . . . . . . . . . . Terminal Index 5 | . 1 . . 1 . . . . . . . . . 1 . . . 1 1 . . . . . . . . . . Repair Station Index 1 | . . . . 1 . . . . . . . . . . . . . . . . . . . . . . . . . Alert Level 6 | . . . . . . . . . . . . . . 1 1 . . 1 1 . . . . . . . 2 . . Unreport Threat 2 | . . . . . . . . . . . . . . 1 . . . . 1 . . . . . . . . . . Locate Traps 7 | . 2 . . 3 . . . . . . . . . . 1 . . 1 . . . . . . . . . . . Dispatch Records 2 | . 1 . . 1 . . . . . . . . . . . . . . . . . . . . . . . . . Transport Status 1 | . . . . 1 . . . . . . . . . . . . . . . . . . . . . . . . . Recall Investigation 1 | . . . . . . . . . . . . . . . . . . . . . . . . . . . 1 . . Hauler Manifests 3 | . . . 1 1 . . . . . . . . . . . . . . . . . . . . . . 1 . . Registered Components 5 | . 1 . . 1 . 1 . 1 . . . . . . . . . 1 . . . . . . . . . . . Registered Prototypes 1 | . . . . 1 . . . . . . . . . . . . . . . . . . . . . . . . . Zone Layout 5 | . . . . 2 1 . . 1 . . . . . . . . . 1 . . . . . . . . . . . Garrison Registry 1 | . . . . . . . 1 . . . . . . . . . . . . . . . . . . . . . . Protovariant Controls 1 | . . . . . . . . . . . . . . . . . . . . . . . . . . . 1 . . Fabricator Hacks 8 | . . . . . . 3 . . . . . . . 3 . . . . . . . . . . . . 2 . . Network Status 2 | . . . . . . 1 . . . . . . . 1 . . . . . . . . . . . . . . . Load Schematic 3 | . . . . . . 1 . . . . . . . 1 . . . . . . . . . . . . 1 . . Build 3 | . . . . . . 1 . . . . . . . 1 . . . . . . . . . . . . 1 . . Repair Station Hacks 3 | . . . . . . . . 3 . . . . . . . . . . . . . . . . . . . . . Scan Component 2 | . . . . . . . . 2 . . . . . . . . . . . . . . . . . . . . . Repair 1 | . . . . . . . . 1 . . . . . . . . . . . . . . . . . . . . . Recycling Unit Hacks 1 | . 1 . . . . . . . . . . . . . . . . . . . . . . . . . . . . Retrieve Components 1 | . 1 . . . . . . . . . . . . . . . . . . . . . . . . . . . . Scanalyzer 9 | . . 1 . . . . . . . . . . . 4 . . . . 1 . . . . . 1 . 1 . 1 Insert Component 2 | . . . . . . . . . . . . . . 2 . . . . . . . . . . . . . . . Analyze 2 | . . . . . . . . . . . . . . 2 . . . . . . . . . . . . . . . Retrieve Study 5 | . . 1 . . . . . . . . . . . . . . . . 1 . . . . . 1 . 1 . 1 Garrison Access Hacks 2 | . . . . . . 1 . . . . . . . . . . . . . . . . . 1 . . . . . Unlock Access 1 | . . . . . . 1 . . . . . . . . . . . . . . . . . . . . . . . Seal Access 1 | . . . . . . . . . . . . . . . . . . . . . . . . 1 . . . . . Unauthorized Hacks 17 | . 2 . . 3 4 1 . 1 . . . . . . . . . 2 1 . . . . 2 . . 1 . . Terminals 10 | . 1 . . 1 2 . . 1 . . . . . . . . . 2 1 . . . . 1 . . 1 . . Botnet 10 | . 1 . . 1 2 . . 1 . . . . . . . . . 2 1 . . . . 1 . . 1 . . Fabricators . | . . . . . . . . . . . . . . . . . . . . . . . . . . . . . . Repair Stations . | . . . . . . . . . . . . . . . . . . . . . . . . . . . . . . Recycling Units 7 | . 1 . . 2 2 1 . . . . . . . . . . . . . . . . . 1 . . . . . Reject 3 | . 1 . . 1 . 1 . . . . . . . . . . . . . . . . . . . . . . . Mask 1 | . . . . . . . . . . . . . . . . . . . . . . . . 1 . . . . . Tunnel 3 | . . . . 1 2 . . . . . . . . . . . . . . . . . . . . . . . . Scanalyzers . | . . . . . . . . . . . . . . . . . . . . . . . . . . . . . . Garrison Access . | . . . . . . . . . . . . . . . . . . . . . . . . . . . . . . Data Cores Recovered 3 | . . . . 1 . . . . . . . . . . . . . 1 . . . . . . . . 1 . . Used . | . . . . . . . . . . . . . . . . . . . . . . . . . . . . . . Hacking Detections 80 | . 6 1 3 6 5 2 2 8 . . . . . 9 7 . . 8 5 . . . . 4 5 . 6 1 2 Full Trace Events 15 | . . . 1 1 3 2 . 1 . . . . . 4 . . . 1 . . . . . 1 . . 1 . . Feedback Events 3 | . . . 1 . . 1 . . . . . . . . . . . . . . . . . 1 . . . . . Corruption 3 | . . . 1 . . 1 . . . . . . . . . . . . . . . . . 1 . . . . . Feedback Blocked . | . . . . . . . . . . . . . . . . . . . . . . . . . . . . . . Robot Schematics Acquired 4 | . . . . . . . . . . . . . . . . . . . . . . . . . 1 . 3 . . Robots Built . | . . . . . . . . . . . . . . . . . . . . . . . . . . . . . . Authchips . | . . . . . . . . . . . . . . . . . . . . . . . . . . . . . . Time . | . . . . . . . . . . . . . . . . . . . . . . . . . . . . . . Total Robot Build Rating . | . . . . . . . . . . . . . . . . . . . . . . . . . . . . . . Part Schematics Acquired 15 | . 1 . . 1 1 . . . . . . . . 3 . . . . . . . . . . 1 . 8 . . Parts Built 5 | . . . . . . 2 . . . . . . . 2 . . . . . . . . . . . . 1 . . Authchips . | . . . . . . . . . . . . . . . . . . . . . . . . . . . . . . Time 269 | . . . . . . 73 . . . . . . . 128 . . . . . . . . . . . . 68 . . Total Part Build Rating 30 | . . . . . . 6 . . . . . . . 16 . . . . . . . . . . . . 8 . . Part Studies Acquired 5 | . . 1 . . . . . . . . . . . . . . . . 1 . . . . . 1 . 1 . 1 Parts Repaired 1 | . . . . . . . . 1 . . . . . . . . . . . . . . . . . . . . . Time 70 | . . . . . . . . 70 . . . . . . . . . . . . . . . . . . . . . Parts Recycled . | . . . . . . . . . . . . . . . . . . . . . . . . . . . . . . Recycled Matter . | . . . . . . . . . . . . . . . . . . . . . . . . . . . . . . Retrieved Matter . | . . . . . . . . . . . . . . . . . . . . . . . . . . . . . . Retrieved Components 9 | . 9 . . . . . . . . . . . . . . . . . . . . . . . . . . . . Parts Scanalyzed 2 | . . . . . . . . . . . . . . 2 . . . . . . . . . . . . . . . Part Schematics Acquired 2 | . . . . . . . . . . . . . . 2 . . . . . . . . . . . . . . . Parts Damaged 1 | . . . . . . . . . . . . . . 1 . . . . . . . . . . . . . . . Bothacking | -11 -10 -9 -8 -8 -8 -6 -6 -6 -6 -6 -6 -6 -5 -5 -5 -5 -5 -5 -4 -4 -4 -4 -3 -3 -3 -2 -2 -2 -1 ------------ Run | Yrd Mat Mat Mat Sto Rec Fac Gar Fac Low Low Zio Dee Pro Fac Ext Cet Arc Hub Fac Upp Upp War Pro Res Qua Res Tes Sec Acc Used RIF Installer . | . . . . . . . . . . . . . . . . . . . . . . . . . . . . . . Robots Hacked . | . . . . . . . . . . . . . . . . . . . . . . . . . . . . . . Non-combat . | . . . . . . . . . . . . . . . . . . . . . . . . . . . . . . Combat . | . . . . . . . . . . . . . . . . . . . . . . . . . . . . . . Robot Hacks Applied . | . . . . . . . . . . . . . . . . . . . . . . . . . . . . . . Relay Couplers Released 28 | . . . . . . . 18 . . . . . . . . . . . 3 . . . . . 3 3 1 . . Machine Destruction 28 | . . . . . . . 18 . . . . . . . . . . . 3 . . . . . 3 3 1 . . Fabnet Peak Effective % . | . . . . . . . . . . . . . . . . . . . . . . . . . . . . . . Robots Rewired 23 | . . . . . 7 . . . . . . . . . 12 . . . . . 3 . . . . . 1 . . Allies Hacked . | . . . . . . . . . . . . . . . . . . . . . . . . . . . . . . Hacks Repelled . | . . . . . . . . . . . . . . . . . . . . . . . . . . . . . . Allies | -11 -10 -9 -8 -8 -8 -6 -6 -6 -6 -6 -6 -6 -5 -5 -5 -5 -5 -5 -4 -4 -4 -4 -3 -3 -3 -2 -2 -2 -1 -------- Run | Yrd Mat Mat Mat Sto Rec Fac Gar Fac Low Low Zio Dee Pro Fac Ext Cet Arc Hub Fac Upp Upp War Pro Res Qua Res Tes Sec Acc Total Allies 66 | . . . . 12 7 . 2 . . . 2 . . . 19 5 . . . . 3 . . . . . 1 . 15 Largest Group 10 | . . . . 10 10 10 2 1 . . 2 2 . . 10 7 5 2 . . 3 3 . . . . 1 . 10 Highest-Rated Group 670 | . . . . 173 194 194 75 29 . . 192 192 . . 378 670 543 192 . . 141 141 . . . . 155 . 144 Highest-Rated Ally 159 | . . . . 31 34 34 46 29 . . 96 96 . . 159 159 159 96 . . 47 47 . . . . 155 . 15 Initial Warlord ECA Mod 11 | . . . . . . . . 11 11 11 11 11 10 10 7 7 7 7 6 4 4 4 3 3 3 2 2 2 1 Warlord Squad Rendezvous 5 | . . . . . . . . . . . . . . 3 . . . . 2 . . . . . . . . . . Dakka 1 | . . . . . . . . . . . . . . 1 . . . . . . . . . . . . . . . Muscle 1 | . . . . . . . . . . . . . . 1 . . . . . . . . . . . . . . . Ranger 1 | . . . . . . . . . . . . . . . . . . . 1 . . . . . . . . . . Pyro 1 | . . . . . . . . . . . . . . 1 . . . . . . . . . . . . . . . Ghost 1 | . . . . . . . . . . . . . . . . . . . 1 . . . . . . . . . . Total Orders 14 | . . . . . . 4 . 2 1 . . . 2 . . . . 2 . . . . . . 1 . . 1 1 STAY 1 | . . . . . . . . . . . . . . . . . . 1 . . . . . . . . . . . FOLLOW 1 | . . . . . . . . . . . . . . . . . . 1 . . . . . . . . . . . EXPLORE 10 | . . . . . . 3 . 2 1 . . . 1 . . . . . . . . . . . 1 . . 1 1 RETURN 2 | . . . . . . 1 . . . . . . 1 . . . . . . . . . . . . . . . . Ally Attacks 501 | . . . . 70 21 53 5 4 . . . 70 . . 128 52 16 31 . . . 6 . . . . 13 . 32 Total Damage 12525 | . . . . 902 264 1309 118 43 . . . 1908 . . 2663 1663 651 1133 . . . 180 . . . . 803 . 888 Kills 76 | . . . . 8 4 9 1 . . . . 9 . . 17 4 2 11 . . . 2 . . . . 5 . 4 Allies Corrupted 1 | . . . . . . . . . . . . . . . . . . . . . . . . . . . . . 1 Allies Melted 3 | . . . . . . . . . . . . 1 . . 1 . . . . . . 1 . . . . . . . Intel | -11 -10 -9 -8 -8 -8 -6 -6 -6 -6 -6 -6 -6 -5 -5 -5 -5 -5 -5 -4 -4 -4 -4 -3 -3 -3 -2 -2 -2 -1 ------- Run | Yrd Mat Mat Mat Sto Rec Fac Gar Fac Low Low Zio Dee Pro Fac Ext Cet Arc Hub Fac Upp Upp War Pro Res Qua Res Tes Sec Acc Active Infowar (turns) 19924 | 56 1215 . 909 . . 1031 . 333 669 1016 1756 . . 1618 . . . 883 1889 1837 852 735 820 413 126 1115 2651 . . Optics 2405 | . . . . . . . . . . . . . . . . . . . . . . . . . . 299 2106 . . Sensors 1521 | . . . . . . . . . . . . . . . . . . . . . . . . . . 2 1519 . . Terrain 3578 | . . . . . . . . 198 610 1016 1754 . . . . . . . . . . . . . . . . . . Structural 239 | . . . . . . 239 . . . . . . . . . . . . . . . . . . . . . . . Seismic 11959 | 56 1215 . 909 . . 792 . 135 59 . . . . 1525 . . . 883 1889 1837 852 735 820 126 126 . . . . Machine Analysis 3766 | . . . . . . . . . . . . . . . . . . . . . . . . . . 1115 2651 . . Jamming 385 | . . . . . . . . . . . 2 . . 93 . . . . . 3 . . . 287 . . . . . Robot Analysis Total 7 | . 2 1 . . 3 . . . . . . . . . . . . 1 . . . . . . . . . . . Derelict Logs Recovered 5 | . . . . . . . . . 2 . 2 . . . . . . . . 1 . . . . . . . . . Drone Launches 10 | . . . . . . 3 . 2 1 . . . 1 . . . . . . . . . . . 1 . . 1 1 Drone Recoveries 3 | . . . . . . 2 . . . . . . 1 . . . . . . . . . . . . . . . . Exploration | -11 -10 -9 -8 -8 -8 -6 -6 -6 -6 -6 -6 -6 -5 -5 -5 -5 -5 -5 -4 -4 -4 -4 -3 -3 -3 -2 -2 -2 -1 ------------- Run | Yrd Mat Mat Mat Sto Rec Fac Gar Fac Low Low Zio Dee Pro Fac Ext Cet Arc Hub Fac Upp Upp War Pro Res Qua Res Tes Sec Acc Turns Passed 46179 | 254 1366 794 1431 3100 2242 1302 1837 2083 1544 1744 2565 2162 1140 2762 1718 842 208 1338 2816 1984 982 1211 900 1744 1742 1161 2728 137 342 Spaces Moved 18074 | 138 708 312 514 1079 865 434 855 727 725 560 974 727 353 966 540 265 71 431 892 795 524 649 333 779 725 630 995 108 400 Core 276 | 17 . . . . . . . . . . . . . . . . . . . . . . . . . . 92 108 59 Treads 12112 | . . . 308 1079 865 434 855 425 . 354 . . 130 279 540 265 71 431 892 795 524 649 333 779 725 630 740 . 9 Legs 4084 | 121 708 312 206 . . . . . . 172 974 727 223 641 . . . . . . . . . . . . . . . Wheels 1270 | . . . . . . . . 302 725 34 . . . 46 . . . . . . . . . . . . 163 . . Hover 65 | . . . . . . . . . . . . . . . . . . . . . . . . . . . . . 65 Flight 267 | . . . . . . . . . . . . . . . . . . . . . . . . . . . . . 267 Fastest Speed 36 | 50 120 190 190 240 245 166 166 166 145 160 196 266 266 175 250 250 250 250 164 164 164 164 252 145 145 145 50 50 36 Average Speed 209 | 118 150 190 220 243 245 240 178 200 182 290 261 266 286 216 250 250 250 250 241 234 167 164 253 185 153 146 174 70 60 Slowest Speed 750 | 150 260 190 240 245 245 246 246 247 235 750 266 266 610 320 250 330 250 250 248 246 250 252 338 252 225 148 290 250 300 Overloaded Moves . | . . . . . . . . . . . . . . . . . . . . . . . . . . . . . . Propulsion Burnouts . | . . . . . . . . . . . . . . . . . . . . . . . . . . . . . . Robots Hopped 12 | . . . . 2 . . . . . . . . . . . . . . . . . . . . . . . . 10 Potential Cave-ins . | . . . . . . . . . . . . . . . . . . . . . . . . . . . . . . Cave-ins Triggered . | . . . . . . . . . . . . . . . . . . . . . . . . . . . . . . Teleports 2 | . . . . . . . . . . . . . . . . . . . . . . . . . 2 . . . . Exploration Rate (%) 56 | 6 91 29 43 92 95 11 95 21 71 64 81 71 66 27 76 73 71 39 31 83 67 87 60 24 70 33 77 17 13 Regions Visited 29 Branch Regions 18 Pre-discovered Areas 6 | . . . . 1 2 . . . 1 . 2 . . . . . . . . . . . . . . . . . . Known Exits Taken 11 | . . . 1 . . 1 . 1 1 . 1 . . 1 . . . 1 1 . . . . 1 1 1 . . . Unknown Exits Taken 17 | 1 1 1 . 1 1 . . . . 1 . 1 1 . 1 1 1 . . 1 1 1 1 . . . 1 1 . Scrap Searched 13 | . . . . . . . . . 1 2 3 . 1 . . . . . . 4 2 . . . . . . . . Spaces Dug 288 | . . . . 14 . 5 . 10 24 9 . 4 . 39 . . . 18 49 . 4 . . 81 6 1 20 1 3 Terrain Destroyed 2221 | . 8 . 2 53 . 5 81 52 25 32 . 12 40 168 10 . . 32 162 60 6 38 24 126 99 28 1143 1 14 Melee 94 | . . . . 2 . 5 . 8 24 . . . . 19 . . . 2 15 . . . . 3 4 . 12 . . Projectile 489 | . . . 2 . . . 5 33 1 11 . 11 5 24 10 . . 24 77 13 6 5 15 34 74 20 113 1 5 AOE 1629 | . 8 . . 51 . . 76 11 . 21 . . 35 123 . . . 4 70 47 . 33 9 89 20 8 1015 . 9 Terrain Rammed . | . . . . . . . . . . . . . . . . . . . . . . . . . . . . . . Walls Destroyed . | . . . . . . . . . . . . . . . . . . . . . . . . . . . . . . Machines Disabled . | . . . . . . . . . . . . . . . . . . . . . . . . . . . . . . Actions | -11 -10 -9 -8 -8 -8 -6 -6 -6 -6 -6 -6 -6 -5 -5 -5 -5 -5 -5 -4 -4 -4 -4 -3 -3 -3 -2 -2 -2 -1 --------- Run | Yrd Mat Mat Mat Sto Rec Fac Gar Fac Low Low Zio Dee Pro Fac Ext Cet Arc Hub Fac Upp Upp War Pro Res Qua Res Tes Sec Acc Total 23116 | 194 892 431 701 1332 971 629 1027 1094 894 626 994 877 437 1413 767 349 91 578 1235 878 614 745 363 950 1046 790 1563 167 468 Wait 1355 | 6 71 37 46 23 3 109 45 163 117 . . 54 44 142 28 11 4 61 32 29 15 12 . 1 88 30 101 53 30 Move 18022 | 137 707 311 513 1074 864 433 852 726 724 559 973 726 352 965 539 264 70 431 891 794 523 648 332 778 724 629 994 107 382 Hop 10 | . . . . 2 . . . . . . . . . . . . . . . . . . . . . . . . 8 Pick Up 396 | 10 12 12 30 28 3 14 11 27 5 8 1 11 6 39 11 4 5 2 34 6 4 10 2 17 17 21 41 . 5 Fast Attach 211 | 6 3 2 6 10 . 2 2 8 3 9 4 10 2 22 . 6 . 3 9 5 4 9 1 15 11 13 29 2 15 Attach 207 | 1 4 5 8 4 . 4 2 16 2 2 1 6 2 16 1 3 1 1 20 6 . 9 3 11 7 7 55 2 8 Detach 60 | . 1 . . . . 1 . . . . . 1 . 8 . 1 . . 4 1 . 1 3 6 3 1 26 2 1 Swap 563 | 1 13 10 13 38 8 16 16 25 9 14 7 15 13 62 22 4 . 23 65 8 12 16 10 21 40 29 53 . . Drop 449 | 1 14 11 25 44 4 18 15 19 5 10 8 18 . 53 9 10 5 5 26 9 9 15 2 27 23 29 33 . 2 Fire 1319 | 32 67 41 55 97 8 21 82 91 3 16 . 35 17 74 31 11 6 38 136 16 4 16 10 50 110 31 203 1 17 Melee 175 | . . . 2 3 . 10 . 17 26 8 . 1 1 31 13 . . 5 17 4 3 . . 4 11 . 19 . . Ram . | . . . . . . . . . . . . . . . . . . . . . . . . . . . . . . Kick 6 | . . 2 3 . . . . . . . . . . 1 . . . . . . . . . . . . . . . Crush 7 | . . . . . . 1 . 2 . . . . . . . . . 3 1 . . . . . . . . . . Escape Stasis 4 | . . . . . . . 2 . . . . . . . . . . . . . . . . 2 . . . . . Rewire 228 | . . . . . 81 . . . . . . . . . 97 . . . . . 40 1 . . . . 9 . . Trap . | . . . . . . . . . . . . . . . . . . . . . . . . . . . . . . Miscellaneous 104 | . . . . 9 . . . . . . . . . . 16 35 . 6 . . . 8 . 18 12 . . . . Route ------- -11/Scrapyard -10/Materials (discovered 3 exits: *Mat x2 / [*Min]) -9/Materials (discovered 2 exits: *Mat / Min) -8/Materials (discovered 2 exits: [*Fac] / *Sto) -8/Storage (discovered 2 exits: [*Fac] / *Rec) -8/Recycling -6/Factory -6/Garrison (discovered 3 exits: *Fac x3) -6/Factory (discovered 2 exits: *Low x2) -6/Lower Caves -6/Lower Caves (discovered 2 exits: *Fac / *Zio) -6/Zion (discovered 2 exits: *Dee / [*Pro]) -6/Deep Caves -5/Proximity Caves -5/Factory (discovered 7 exits: *Fac x3 / Upp x2 / *Ext x2) -5/Extension (discovered 3 exits: *Fac x2 / *Cet) -5/Cetus (discovered 2 exits: *Fac / [*Arc]) -5/Archives (discovered 2 exits: *Hub x2) -5/Hub_04(d) -4/Factory (discovered 4 exits: *Res / *Upp x2 / Arm) -4/Upper Caves -4/Upper Caves (discovered 2 exits: *Res / *War) -4/Warlord -3/Proximity Caves -3/Research (discovered 4 exits: *Res x2 / *Qua x2) -3/Quarantine -2/Research -2/Testing (discovered 2 exits: *Sec / [*Frg]) -2/Section 7 -1/Access History --------- Turn | Location | Event 27 | -11/Scrapyard | Discovered new exit (range 16) 255 | -11/Scrapyard | Entered Materials 312 | -10/Materials | Build established: Mutant 486 | -10/Materials | Discovered new exit (range 9) 573 | -10/Materials | Discovered new exit (range 10) 968 | -10/Materials | Build established: Scavenger-Mutant 1183 | -10/Materials | Discovered new exit (range 6) 1498 | -10/Materials | Build established: Mutant 1553 | -10/Materials | Core integrity fell below 50% 1553 | -10/Materials | Core integrity fell below 20% 1621 | -10/Materials | Entered another Materials area 1621 | -9/Materials | Evolved 2 slots: Propulsion x2 1940 | -9/Materials | Build established: Scavenger-Mutant 2273 | -9/Materials | Identified exit to Mines 2273 | -9/Materials | Central database locked down 2406 | -9/Materials | Discovered new exit (range 4) 2415 | -9/Materials | Entered another Materials area 2415 | -8/Materials | Evolved 2 slots: Utility x1, Weapon x1 2426 | -8/Materials | Discovered new exit (range 10) 3004 | -8/Materials | Build established: Scavenger-Gunner 3280 | -8/Materials | Discovered new exit (range 3) 3652 | -8/Materials | Identified exit to Storage 3846 | -8/Materials | Entered Storage 4142 | -8/Storage | Build established: Tank 4262 | -8/Storage | Met a pair of Derelict thieves 4451 | -8/Storage | Destroyed 11 combat bots 4534 | -8/Storage | Build established: Scavenger-Tank 4808 | -8/Storage | Assisted by bots powering up and referring to "LRC-V3" 4810 | -8/Storage | Central database locked down 5108 | -8/Storage | Build established: Commander-Tank 5171 | -8/Storage | Discovered new exit (range 4) 5273 | -8/Storage | Discovered new exit (range 16) 5963 | -8/Storage | Build established: Commander-Mutant 6275 | -8/Storage | Found Prototype Protection 6275 | -8/Storage | Identified Lgt. Regenerative Plating 6578 | -8/Storage | Build established: Commander-Gunner 6646 | -8/Storage | First assault squad dispatched 6663 | -8/Storage | Garrison activated, responded to threat 6946 | -8/Storage | Entered Recycling 6946 | -8/Recycling | Accompanied by 3 allies 6982 | -8/Recycling | Build established: Gunner 7043 | -8/Recycling | Scanned before Scraplab entrance 8518 | -8/Recycling | Discovered new exit (range 8) 9183 | -8/Recycling | Build established: Commander-Gunner 9188 | -8/Recycling | Entered Factory 9188 | -6/Factory | Accompanied by 10 allies 9188 | -6/Factory | Evolved 4 slots: Propulsion x1, Utility x2, Weapon x1 10326 | -6/Factory | Noticed a derelict Sapper rigging charges 10330 | -6/Factory | Garrison activated, responded to threat 10366 | -6/Factory | Fabricated Cryofiber Web (x2) 10484 | -6/Factory | Identified exit to Garrison 10490 | -6/Factory | Entered Garrison 10490 | -6/Garrison | Accompanied by 2 allies 10513 | -6/Garrison | Build established: Gunner 10577 | -6/Garrison | Triggered checkpoint 10600 | -6/Garrison | Garrison Relay disabled 10931 | -6/Garrison | Triggered checkpoint 10958 | -6/Garrison | Triggered checkpoint 11003 | -6/Garrison | Destroyed 9 combat bots 11124 | -6/Garrison | Triggered checkpoint 11157 | -6/Garrison | Triggered checkpoint 11272 | -6/Garrison | Triggered checkpoint 11387 | -6/Garrison | Garrison Relay disabled 11413 | -6/Garrison | Discovered new exit (range 10) 11491 | -6/Garrison | Rescued a captive Derelict 11501 | -6/Garrison | Rescued a captive Derelict 11548 | -6/Garrison | Phase Generator disabled 11713 | -6/Garrison | Discovered new exit (range 9) 11757 | -6/Garrison | Triggered checkpoint 11800 | -6/Garrison | Garrison Relay disabled 11817 | -6/Garrison | Discovered new exit (range 73) 11817 | -6/Garrison | Discovered new exit (range 31) 11817 | -6/Garrison | Discovered new exit (range 25) 11943 | -6/Garrison | Garrison Relay disabled 12092 | -6/Garrison | Attempted to access garrison exit controls, blocked by remote lockdown 12218 | -6/Garrison | Attempted to access garrison exit controls, blocked by remote lockdown 12292 | -6/Garrison | Build established: Scavenger-Gunner 12327 | -6/Garrison | Entered Factory 12327 | -6/Factory | Accompanied by 1 ally 12886 | -6/Factory | Identified exit to Lower Caves 12999 | -6/Factory | Build established: Gunner 13027 | -6/Factory | First assault squad dispatched 13094 | -6/Factory | Repaired Broken Imp. Medium Treads 13322 | -6/Factory | Destroyed 7 combat bots 13327 | -6/Factory | Lost 3 parts (1n1u1w) 13400 | -6/Factory | Garrison activated, responded to threat 13459 | -6/Factory | Destroyed 9 combat bots 13488 | -6/Factory | Lost 6 parts (3p1u2w) 13695 | -6/Factory | Lost 5 parts (4n1w) 13916 | -6/Factory | Build established: Scavenger-Gunner 14410 | -6/Factory | Entered Lower Caves 14459 | -6/Lower Caves | Met a Warlord Commander 14460 | -6/Lower Caves | Learned location of Warlord (-4) 14461 | -6/Lower Caves | Warlord Commander delivered Encrypted Comm Array 14464 | -6/Lower Caves | Found Encrypted Comm Array 14563 | -6/Lower Caves | Identified exit to Lower Caves 14884 | -6/Lower Caves | Build established: Gunner 15233 | -6/Lower Caves | Learned Factory garrison access intel 15874 | -6/Lower Caves | Found Alien Artifact 15874 | -6/Lower Caves | Identified Core Expander 15874 | -6/Lower Caves | Installed Core Expander, added new Utility slot 15954 | -6/Lower Caves | Entered another Lower Caves area 16007 | -6/Lower Caves | Discovered new exit (range 13) 16044 | -6/Lower Caves | Lost 3 parts (3n) 16197 | -6/Lower Caves | System corruption reached 10% 16539 | -6/Lower Caves | Build established: Scavenger-Gunner 16584 | -6/Lower Caves | Learned Factory stockpile data 16584 | -6/Lower Caves | Learned Research stockpile data 16584 | -6/Lower Caves | Learned Factory terminal intel 17236 | -6/Lower Caves | Build established: Gunner 17293 | -6/Lower Caves | Discovered new exit (range 16) 17698 | -6/Lower Caves | Entered Zion 17767 | -6/Zion | System corruption cleaned by Quarantine Array 18061 | -6/Zion | Discovered new exit (range 16) 18087 | -6/Zion | Acquired unknown access codes intercepted by a Zionite 18146 | -6/Zion | Given A8's code to call for help 18723 | -6/Zion | Given the Hacking Drone Bay 18953 | -6/Zion | Learned 4 Factory zone layouts 18983 | -6/Zion | Identified exit to Deep Caves 20201 | -6/Zion | Opened final containment barrier to the Deep Caves 20204 | -6/Zion | Enhanced Grunt warped into view, answering call for help 20205 | -6/Zion | Enhanced Grunt warped into view, answering call for help 20246 | -6/Zion | Saw the warning signs outside the Deep Caves entrance 20263 | -6/Zion | Entered Deep Caves 20263 | -6/Deep Caves | Accompanied by 2 allies 20544 | -6/Deep Caves | Attacked by Z-Imprinter 20555 | -6/Deep Caves | Destroyed Z-Imprinter 20568 | -6/Deep Caves | Found Prototype Device 20568 | -6/Deep Caves | Identified Exp. Thermal Shield 20858 | -6/Deep Caves | Z-Facility disabled 20872 | -6/Deep Caves | Core integrity fell below 50% 20911 | -6/Deep Caves | Found Prototype Protection 20911 | -6/Deep Caves | Identified Zio. Weapon Casing 20956 | -6/Deep Caves | Found Prototype Protection 20956 | -6/Deep Caves | Identified Zio. Heavy Carapace 21161 | -6/Deep Caves | Build established: Scavenger-Tank 21259 | -6/Deep Caves | Found Zio. Heavy Carapace 21814 | -6/Deep Caves | Spotted AG-88503 21854 | -6/Deep Caves | Destroyed AG-88503 21883 | -6/Deep Caves | Lost 4 parts (1n2u1w) 21991 | -6/Deep Caves | Spotted AG-08005 22407 | -6/Deep Caves | Discovered new exit (range 6) 22425 | -6/Deep Caves | Entered Proximity Caves 22505 | -5/Proximity Caves | Attracted the attention of an 0b10 checkpoint 22737 | -5/Proximity Caves | Build established: Scavenger-Gunner 23398 | -5/Proximity Caves | Discovered new exit (range 5) 23565 | -5/Proximity Caves | Entered Factory 23565 | -5/Factory | Evolved 2 slots: Power x1, Utility x1 23566 | -5/Factory | Identified exit to Factory 23568 | -5/Factory | Loaded intel: 28 terminal locations 23569 | -5/Factory | Loaded intel: 4 garrison access locations 23626 | -5/Factory | Joined by Warlord Dakka squad 23712 | -5/Factory | Lost 4 allies 23875 | -5/Factory | Joined by Warlord Muscle squad 24288 | -5/Factory | Fabricated Adv. Force Field (x2) 24903 | -5/Factory | Lost 3 parts (2p1u) 25141 | -5/Factory | Discovered exit to Factory (range 6) 25188 | -5/Factory | Lost 4 parts (2u2w) 25263 | -5/Factory | Joined by Warlord Pyro squad 25362 | -5/Factory | Lost 3 allies 25618 | -5/Factory | Found Hvy. Reactive Plating 25670 | -5/Factory | System corruption reached 10% 25805 | -5/Factory | Identified exit to Upper Caves 25805 | -5/Factory | Identified exit to Extension 26182 | -5/Factory | Build established: Scavenger-Tank 26327 | -5/Factory | Entered Extension 26355 | -5/Extension | Disrupted transfer network 26466 | -5/Extension | Rescued a captive Derelict 26467 | -5/Extension | Rescued a captive Derelict 26710 | -5/Extension | Lost 4 allies 27166 | -5/Extension | Rescued a captive Derelict 27167 | -5/Extension | Rescued a captive Derelict 27292 | -5/Extension | Spotted B-75 Beast 27308 | -5/Extension | Spotted B-75 Beast 27338 | -5/Extension | Allies destroyed B-75 Beast 27339 | -5/Extension | Destroyed B-75 Beast 27346 | -5/Extension | Lost 4 allies 27415 | -5/Extension | Discovered exit to Factory (range 3) 27550 | -5/Extension | Rescued A7 27604 | -5/Extension | Rescued a captive Derelict 27606 | -5/Extension | Rescued a captive Derelict 27690 | -5/Extension | Energy Cycler disabled 27691 | -5/Extension | Rescued a captive Derelict 27692 | -5/Extension | Rescued a captive Derelict 27999 | -5/Extension | Discovered exit to Factory (range 10) 28002 | -5/Extension | Discovered new exit (range 6) 28045 | -5/Extension | Entered Cetus 28045 | -5/Cetus | Accompanied by 5 allies (A7) 28050 | -5/Cetus | Acquired a Cetus Manufacturing Module code from A7 28079 | -5/Cetus | Spotted Cetus Guard 28080 | -5/Cetus | Spotted Cetus Guard 28084 | -5/Cetus | Spotted Cetus Guard 28088 | -5/Cetus | Destroyed Cetus Guard 28089 | -5/Cetus | Spotted Cetus Guard 28097 | -5/Cetus | Destroyed Cetus Guard 28100 | -5/Cetus | Destroyed Cetus Guard 28126 | -5/Cetus | Lost 3 allies 28232 | -5/Cetus | Started Cetus Manufacturing Module 28250 | -5/Cetus | Escorted A7 to Cetus Mainframe 28257 | -5/Cetus | Manufactured an Enhanced Grunt 28282 | -5/Cetus | Manufactured an Enhanced Grunt 28292 | -5/Cetus | Discovered new exit (range 15) 28307 | -5/Cetus | Manufactured an Enhanced Grunt 28332 | -5/Cetus | Manufactured an Enhanced Grunt 28357 | -5/Cetus | Manufactured an Enhanced Grunt 28578 | -5/Cetus | Found a strange terminal 28669 | -5/Cetus | Build established: Commander-Tank 28670 | -5/Cetus | Spotted Cetus Guard 28670 | -5/Cetus | Spotted Cetus Guard 28675 | -5/Cetus | Spotted Cetus Guard 28676 | -5/Cetus | Spotted Cetus Guard 28678 | -5/Cetus | Destroyed Cetus Guard 28684 | -5/Cetus | Destroyed Cetus Guard 28687 | -5/Cetus | Destroyed Cetus Guard 28691 | -5/Cetus | Allies destroyed Cetus Guard 28701 | -5/Cetus | Discovered exit to Factory (range 15) 28713 | -5/Cetus | Met Revision 17 28795 | -5/Cetus | Security sweep announced 28887 | -5/Cetus | Entered Archives 28887 | -5/Archives | Accompanied by 5 allies (A7) 28892 | -5/Archives | Received a hacking code to weaken MAIN.C 28964 | -5/Archives | Discovered new exit (range 16) 28995 | -5/Archives | Build established: Scavenger-Tank 29052 | -5/Archives | Discovered new exit (range 16) 29095 | -5/Archives | Entered Hub_04(d) 29095 | -5/Hub_04(d) | Accompanied by 2 allies 29395 | -5/Hub_04(d) | First assault squad dispatched 30114 | -5/Hub_04(d) | Discovered exit to Factory (range 11) 30252 | -5/Hub_04(d) | Network Hub disabled 30309 | -5/Hub_04(d) | Spotted Lightning 30374 | -5/Hub_04(d) | Network Hub disabled 30413 | -5/Hub_04(d) | Spotted Lightning 30416 | -5/Hub_04(d) | Spotted Lightning 30433 | -5/Hub_04(d) | Entered Factory 30433 | -4/Factory | Evolved 2 slots: Propulsion x1, Utility x1 30434 | -4/Factory | Identified exit to Armory 30450 | -4/Factory | Identified exit to DSF 30641 | -4/Factory | Found Heavy Servo Lattice 30650 | -4/Factory | Found Heavy Servo Lattice 30887 | -4/Factory | Central database locked down 31068 | -4/Factory | Found Unknown Protection 31068 | -4/Factory | Identified Powered Armor 31072 | -4/Factory | Found Powered Armor 31078 | -4/Factory | Found Powered Armor 31588 | -4/Factory | Cargo convoy interrupted 31975 | -4/Factory | Destroyed 7 combat bots 31982 | -4/Factory | Lost 6 parts (2n1u3w) 32045 | -4/Factory | Destroyed 10 combat bots 32388 | -4/Factory | Identified exit to Upper Caves 32410 | -4/Factory | Joined by Warlord Ranger squad 32433 | -4/Factory | First assault squad dispatched 32675 | -4/Factory | Destroyed 7 combat bots 32708 | -4/Factory | Discovered new exit (range 15) 32723 | -4/Factory | Lost 9 parts (1p3n3u2w) 32755 | -4/Factory | Joined by Warlord Ghost squad 33231 | -4/Factory | Specialist reinforcements revealed to be Infiltrators 33249 | -4/Factory | Entered Upper Caves 34650 | -4/Upper Caves | Learned location of 1 exit from Research 34745 | -4/Upper Caves | Attracted the attention of an 0b10 checkpoint 34930 | -4/Upper Caves | Spotted B-86 Titan 35059 | -4/Upper Caves | Discovered new exit (range 3) 35233 | -4/Upper Caves | Entered another Upper Caves area 35281 | -4/Upper Caves | Discovered new exit (range 10) 35287 | -4/Upper Caves | Attracted the attention of an 0b10 checkpoint 35992 | -4/Upper Caves | Attacked by a delusional Derelict stockpiling Unaware 36195 | -4/Upper Caves | Discovered new exit (range 11) 36215 | -4/Upper Caves | Entered Warlord 36215 | -4/Warlord | Accompanied by 3 allies 36283 | -4/Warlord | System corruption cleaned by Quarantine Array 36797 | -4/Warlord | Met Warlord 36809 | -4/Warlord | Warlord's base attacked by MAIN.C 36922 | -4/Warlord | Found Prototype Reactor 36922 | -4/Warlord | Identified Vortex Chain Reactor 36927 | -4/Warlord | Found Prototype Processor 36927 | -4/Warlord | Identified Exp. Targeting Computer 36952 | -4/Warlord | Found Prototype Processor 36952 | -4/Warlord | Identified Exp. Armor Integrity Analyzer 36959 | -4/Warlord | Found Prototype Device 36959 | -4/Warlord | Identified Thermal Barrier 37017 | -4/Warlord | Found Prototype Energy Gun 37017 | -4/Warlord | Identified Vortex Rail 37023 | -4/Warlord | Found Vortex Rail 37159 | -4/Warlord | Warlord forces counterattacked 37176 | -4/Warlord | Spotted B-90 Cyclops 37200 | -4/Warlord | Destroyed B-90 Cyclops 37225 | -4/Warlord | Lost 7 allies 37280 | -4/Warlord | Spotted Striker 37321 | -4/Warlord | Spotted Striker 37322 | -4/Warlord | Spotted Striker 37329 | -4/Warlord | Spotted Striker 37350 | -4/Warlord | Destroyed Striker 37350 | -4/Warlord | Destroyed Striker 37352 | -4/Warlord | Destroyed Striker 37358 | -4/Warlord | Lost 24 allies 37382 | -4/Warlord | Lost 3 parts (2u1w) 37395 | -4/Warlord | Discovered new exit (range 14) 37404 | -4/Warlord | Destroyed 13 combat bots 37409 | -4/Warlord | Spotted B-86 Titan 37409 | -4/Warlord | Spotted B-90 Cyclops 37426 | -4/Warlord | Entered Proximity Caves 37456 | -3/Proximity Caves | Lost 3 parts (1n1u1w) 38033 | -3/Proximity Caves | Build established: Scavenger-Mutant 38301 | -3/Proximity Caves | Discovered new exit (range 8) 38326 | -3/Proximity Caves | Entered Research 38326 | -3/Research | Evolved 2 slots: Power x1, Utility x1 38327 | -3/Research | Identified exit to Research 38396 | -3/Research | Identified exit to Quarantine 38526 | -3/Research | Revision forces began assault on 0b10 38544 | -3/Research | Met up with Revision 17++ 38778 | -3/Research | Found Unknown Launcher 38778 | -3/Research | Identified Fusion Bomb Launcher 38782 | -3/Research | Found Fusion Bomb Launcher 38785 | -3/Research | Found Fusion Bomb Launcher 38789 | -3/Research | Found Fusion Bomb Launcher 38793 | -3/Research | Found Fusion Bomb Launcher 38796 | -3/Research | Found Fusion Bomb Launcher 39026 | -3/Research | Research terminal network offline 39069 | -3/Research | Build established: Scavenger-Gunner 39098 | -3/Research | Found Prototype Launcher 39098 | -3/Research | Identified Tactical Quantum Warhead 39161 | -3/Research | Lost 3 allies 39243 | -3/Research | Discovered exit to Research (range 16) 39553 | -3/Research | Build established: Tank 39845 | -3/Research | Spotted Striker 39846 | -3/Research | Spotted Executioner 39855 | -3/Research | Destroyed Striker 39859 | -3/Research | Destroyed Executioner 39869 | -3/Research | Spotted Striker 39870 | -3/Research | Spotted Executioner 39891 | -3/Research | Destroyed Striker 39897 | -3/Research | Destroyed Executioner 40070 | -3/Research | Entered Quarantine 40115 | -3/Quarantine | Found Alien Artifact 40115 | -3/Quarantine | Identified Hpw. Transdimensional Reconstructor 40115 | -3/Quarantine | Warped through subspace 40123 | -3/Quarantine | Found Alien Artifact 40123 | -3/Quarantine | Identified Core Reset Matrix 40123 | -3/Quarantine | Used Core Reset Matrix 40127 | -3/Quarantine | Detected hypermatrix surge 40127 | -3/Quarantine | Sensed 8 artifacts in vicinity 40312 | -3/Quarantine | Found Transdimensional Reconstructor 40415 | -3/Quarantine | Spotted Alpha 7 40454 | -3/Quarantine | Destroyed Alpha 7 40487 | -3/Quarantine | Found Sigix Terminator 40679 | -3/Quarantine | System corruption reached 10% 40820 | -3/Quarantine | First assault squad dispatched 40951 | -3/Quarantine | Met incapacitated Sigix Warrior 40951 | -3/Quarantine | Lockdown squad dispatched 40999 | -3/Quarantine | Spotted Lightning 41002 | -3/Quarantine | Spotted Lightning 41005 | -3/Quarantine | Spotted Lightning 41012 | -3/Quarantine | Acquired the access code to the Sigix quarantine chamber 41032 | -3/Quarantine | Destroyed Lightning 41047 | -3/Quarantine | Destroyed Lightning 41050 | -3/Quarantine | Destroyed Lightning 41063 | -3/Quarantine | Unlocked Sigix quarantine chamber 41070 | -3/Quarantine | Found Sigix Containment Pod 41130 | -3/Quarantine | Build established: Scavenger-Tank 41645 | -3/Quarantine | Warped through subspace 41737 | -3/Quarantine | Central database locked down 41776 | -3/Quarantine | Discovered exit to Research (range 10) 41812 | -3/Quarantine | Entered Research 41812 | -2/Research | Warlord forces began assault on 0b10 41812 | -2/Research | Evolved 2 slots: Utility x2 41837 | -2/Research | Distinguished unit "Offensive Angels" dispatched to help 41894 | -2/Research | Lost 4 allies 41922 | -2/Research | Research machine network offline 42072 | -2/Research | Spotted Striker 42106 | -2/Research | Destroyed Striker 42145 | -2/Research | Lost 4 allies 42181 | -2/Research | Lost 3 parts (1p2n) 42185 | -2/Research | Found Prototype Device 42185 | -2/Research | Identified Exp. Focal Shield 42309 | -2/Research | Met up with Warlord 42330 | -2/Research | Borebot progress halted 42362 | -2/Research | Spotted Striker 42365 | -2/Research | Spotted Striker 42371 | -2/Research | Borebot progress halted 42463 | -2/Research | Discovered new exit (range 12) 42479 | -2/Research | Identified exit to Testing 42500 | -2/Research | Spotted Executioner 42500 | -2/Research | Spotted Striker 42506 | -2/Research | Spotted Executioner 42514 | -2/Research | Spotted Executioner 42560 | -2/Research | Lost 6 allies 42603 | -2/Research | Spotted Striker 42603 | -2/Research | Spotted Executioner 42637 | -2/Research | Spotted Executioner 42637 | -2/Research | Spotted Striker 42639 | -2/Research | Borebot progress halted 42702 | -2/Research | Spotted Executioner 42789 | -2/Research | Lost 3 allies 42818 | -2/Research | Warlord invited to help at Command 42818 | -2/Research | Given Cave Seal Controls access code 42827 | -2/Research | Spotted Striker 42829 | -2/Research | Spotted Executioner 42831 | -2/Research | Spotted Striker 42887 | -2/Research | Lost 3 allies 42973 | -2/Research | Entered Testing 42976 | -2/Testing | Spotted PH-JIOJOE7TIO 43012 | -2/Testing | Found Prototype Device 43012 | -2/Testing | Identified Exp. Weapon Cycler 43038 | -2/Testing | Garrison activated, responded to threat 43122 | -2/Testing | Lost 4 allies 43281 | -2/Testing | Found Prototype Energy Cannon 43281 | -2/Testing | Identified Imp. Potential Cannon 43282 | -2/Testing | Destroyed 11 combat bots 43343 | -2/Testing | Spotted Striker 43361 | -2/Testing | Spotted Striker 43363 | -2/Testing | Destroyed Striker 43364 | -2/Testing | Spotted Alpha 7 43415 | -2/Testing | System corruption reached 10% 43438 | -2/Testing | Destroyed Alpha 7 43448 | -2/Testing | Lost 6 parts (1p2n2u1w) 43473 | -2/Testing | First assault squad dispatched 43603 | -2/Testing | Found Prototype Launcher 43603 | -2/Testing | Identified Ragnarok Missile Launcher 44038 | -2/Testing | Destroyed 13 combat bots 44045 | -2/Testing | Lost 12 parts (2p2n4u4w) 44205 | -2/Testing | Found Prototype Energy Cannon 44205 | -2/Testing | Identified Hpw. Disruptor Cannon 44295 | -2/Testing | Rewired PH-2XYDBWSE8E 44425 | -2/Testing | Found Prototype Energy Cannon 44425 | -2/Testing | Identified Null Cannon 44607 | -2/Testing | Found Prototype Energy Gun 44607 | -2/Testing | Identified Warp Gun 44654 | -2/Testing | Scanned by Researcher 44681 | -2/Testing | Found Prototype Protection 44681 | -2/Testing | Identified SHELL Armor 44689 | -2/Testing | Found Prototype Protection 44689 | -2/Testing | Identified Lgt. Regenerative Plating 44700 | -2/Testing | Found Prototype Protection 44829 | -2/Testing | Fabricated Hds. Centrium Wheel? 44918 | -2/Testing | Build established: Scavenger-Assassin 44932 | -2/Testing | Found Prototype Ballistic Gun 44932 | -2/Testing | Identified Hyp. Multirail 45080 | -2/Testing | System corruption reached 30% 45109 | -2/Testing | Identified Med. Regenerative Plating 45138 | -2/Testing | Lost 10 parts (3p2n4u1w) 45165 | -2/Testing | Destroyed 12 combat bots 45368 | -2/Testing | Lost 5 parts (1n2u2w) 45468 | -2/Testing | Found Prototype Ballistic Cannon 45529 | -2/Testing | Spotted Fortress 45547 | -2/Testing | Identified Omega Cannon 45624 | -2/Testing | Fired Sigix Terminator 45625 | -2/Testing | Core integrity fell below 50% 45643 | -2/Testing | Destroyed Fortress 45655 | -2/Testing | Lost 13 parts (4p3n6u) 45698 | -2/Testing | Discovered new exit (range 6) 45698 | -2/Testing | Discovered new exit (range 6) 45701 | -2/Testing | Entered Section 7 45702 | -2/Section 7 | Detected hypermatrix surge 45702 | -2/Section 7 | Sensed 23 artifacts in vicinity 45830 | -2/Section 7 | Discovered new exit (range 16) 45838 | -2/Section 7 | Entered Access 45838 | -1/Access | Evolved 2 slots: Propulsion x2 45846 | -1/Access | Energy Cycler disabled 45923 | -1/Access | Build established: Mutant 46073 | -1/Access | Lost 4 parts (2p1n1w) 46086 | -1/Access | Spotted B-99 Colossus 46088 | -1/Access | First assault squad dispatched 46104 | -1/Access | System corruption reached 10% 46115 | -1/Access | Core integrity fell below 50% 46122 | -1/Access | Emitted hypermatrix ping 46127 | -1/Access | Assembled emerged from beneath the floor 46131 | -1/Access | Assembled emerged from beneath the floor 46134 | -1/Access | Core integrity fell below 20% 46150 | -1/Access | Lost 11 parts (6n4u1w) 46150 | -1/Access | System corruption reached 30% 46180 | -1/Access | Lost 11 allies 46180 | -1/Access | Destroyed by P-80 Master with Gamma Rifle Last Messages --------------- off. 46175_ G-73 Enforcer destroyed. 46176_ Penetrated by Slug. 46176_ Slug penetrates G-73 Enforcer. 46177_ Omega Cannon destroyed. 46178_ C-45 Heavy ARC bursts open, deploying its payload. 46178_ G-73 Enforcer unfolds itself. 46178_ L-61 Swordsman unfolds itself. 46178_ E-15 Imp unfolds itself. 46179_ System corrupted: Heat flow error (+153). 46179_ P-80 Master resets G-73 Enforcer, system corruption cleaned. 46179_ Slug penetrates P-80 Master. 46179_ P-80 Master destroyed. 46179_ Penetrated by Slug. 46180_ G-73 Enforcer destroyed. 46180_ Penetrated by Slug. [Achievement: 75k Club] [Achievement: Punisher] Map ----- +----------------------------------------------------+ | ??????????????????? #????????# | | ?????????????????????###############+#+########## | | ??????????????????????????????????# ## | | ??????????????????????????????????# ## | | ??????????????????????????????????# " ] ## | | ??????????????????????????????????# """" ## | | ??????????????????????????????????# """"" ## | | ?????????????????? ??????????????# """"" ### | | ??????????????? ??????????????# """" # | | ????????????? ??????????????# " # | | ????????????# ??????????????# # | | ????????????+ ??????????????# # | | ????????????# ??????????????# # | | ???????? ???# ??????????????# # | | ????????#+### ###+############# ## ### | | ??????? % | | ????????% ^ | | ???????? | | ???????? = | | ????????? !%* | | ????????????""" !=! | | ?????? ????""""" *%== | | ?????# """" = == !] #""################## # | | ?????# """" % %]%!!# ##????????????????# # | | ?????# """" =%%###?????????????????# # | | ?????# % = @!#???????????????????# # | | ?????" % ][ #???????????????????# | | ?????" * g %] ##??????????????????# | | ?????" "" "" """ e[!%##################### | | ????T """"" o""""*[g= | | ????"" """"" """"%[%[h | | ????"" """"" """"*%pgp | | ????"" """"" """"gp[! g | | ?????# gg=%! | | ?????# %|%%[%| | | ?????# gl[%=% | | ?????##### #####g*% ################ | | ?????????# #???# #??????????????? | | ?????????# #???# "??????????????? | | ?????????# #???# % #??????????????? | | ?????????# #???# h #??????????????? | | ?????????# "#???# |=! #??????????????? | | ?????????# "%#???# %%! ########???????? | | ?????????# #???# !![ #???????? | | ?????????# ????# #???????? | | ?????????# ????# #???????? | | ?????????# ???## +???????? | | ?????????# ???# # #???????? | | ?????????# ???# # #???????? | | ???????????? ???# * # #???????? | +----------------------------------------------------+ Best States ------------- Heat Dissipation 105 Coolant Potential 65 Energy Generation 75 Energy Capacity 1500 Matter Stores 534 Matter Capacity 800 Sight Range 23 Robot Scan Range 16 Terrain Scan Range 24 Terrain Scan Density 85 Jamming Range 14 Power Amplification 30 Base Temperature (-) 200 Corruption Containment 12 Corruption Block 20 Armor Coverage 1425 Resistance: KI 40 Resistance: TH 50 Resistance: EM 20 Propulsion Shielding 15 Utility Shielding 90 Melee Speed Boost 20 Evasion (%) 62 Targeting Accuracy 12 Target Analysis 6 Core Analysis 6 Armor Integrity Analysis 50 Recoil Reduction 12 Offensive Hacking 23 Defensive Hacking 10 Item Schematics ----------------- Exp. Power Amplifier | -3/Quarantine | Archive Exp. Thermal Defense Suite | -2/Testing | Archive Lrn. Phase Cannon | -2/Testing | Archive Hds. Centrium Wheel | -2/Testing | Archive Enh. Multireflex Exoskeleton | -2/Testing | Archive Thunder Hammer | -2/Testing | Archive Prc. Energy Filter | -2/Testing | Archive Lgt. Antimatter Cannon | -2/Testing | Archive Adv. Dynamic Insulation System | -2/Testing | Archive Robot Schematics ------------------ M-30 Cleanser | -3/Quarantine | Archive E-15 Imp | -2/Testing | Archive H-88 Terminator | -2/Testing | Archive A-27 Freighter | -2/Testing | Archive Fabricated ------------ Cryofiber Web | x2 | -6/Factory Adv. Force Field | x2 | -5/Factory Hds. Centrium Wheel | x1 | -2/Testing Repaired ---------- Imp. Medium Treads | 9% | -6/Factory | Broken Studied --------- Adv. Heavy Treads | -3/Quarantine | Hacked Lgt. Quantum Reactor | -2/Testing | Hacked Impulse Thruster Array | -1/Access | Hacked Alien Tech Used ----------------- Core Expander High-powered Transdimensional Reconstructor Core Reset Matrix Transdimensional Reconstructor Sigix Terminator Achievements -------------- 75k Club Betrayal Most Foul Better Safe Than Exploded Equal Opportunity Bot Main Advantage Max Potential More Power To You My Business Is Booming Myspace Nope Origins Out Of My Way Punisher Tailor-made Thread The Needle Around The Corner Well Done Well-fed Force Field Challenges ------------ None Game ------ Seed LauncherDecoderNukerbomber Manual? 0 Play Time 12:46:58 Cumulative 186.4 hours Start 2025.10.28 @ 17:35:15 End 2025.11.06 @ 12:27:56 Sessions 26 Manual Loads 0 Difficulty Rogue Special Mode None Game No. 61 Rogue 61 Adventurer 0 Explorer 0 Win Type - Total 2 Types 2/0/0/0/0/0/0/0/0/0 Lore% 60 Gallery% 60 Achievement% 42 Wizard Run 0 Options --------- Layout 1 ASCII 0 Keyboard 0 Movement Mouse Keybinds 0 Fullscreen 1 Font 32/Smallcaps Map View 50x35 Zoom Use 0% Tactical HUD 1 Map Filters NONE Filters NONE Steam 1 RUN: 68a5e990-5457-49fc-8a78-49c308c1c848